Cogmind - Beta 17 @@@ ROGUE MODE // 2026.07.20 @ 21:38:48 Player: H3-MLN Result: Destroyed by Y-72 Warden with Quantum Rifle Performance ------------- Evolutions (9) 4500 Regions Visited (35) 7000 Robots Destroyed (704) 3520 Value Destroyed (33439) 33439 Prototype IDs (164) 3280 Alien Tech Used (15) 3000 Bonus (29439) 29439 TOTAL SCORE: 84178 Bonus ------- Triggered High Security 1000 High Alert Combat Kills 7589 Follower Combat Kills 4431 Hunted by Unchained 500 Entered Garrisons 600 Network Hubs Disabled 600 Aligned with FarCom 300 Met Imprinter 300 Destroyed Z-Imprinter 1000 Triggered Deep Caves Wall 500 Exposed GOLEM Chamber 500 Acquired ECA 300 Met Zhirov 300 Met Warlord at Base 500 MAIN.C Attacked Warlord 500 Warlord Defense Kills 2470 Built Enhanced Grunts 300 A7 Reached Mainframe 300 Met R17 at Cetus 500 Met R17 at Research 2000 Met Warlord at Research 2000 Invited to Help at Command 2000 Scanned by Researcher 500 Pursued by Intercept 1000 Friendly Fire -551 Cogmind --------- Core Integrity 0/1600 Matter 220/425 Energy 100/100 System Corruption 0% +Membrane Temperature Cool (4) Movement Core (50) +NEM 1 Location -1/Access Parts ------- > --- POWER (2) -------- (None) > --- PROPULSION (8) --- (None) > --- UTILITY (12) ----- (None) > --- WEAPON (3) ------- (None) > --- INVENTORY (7) ---- Core Stripper Peak State ------------ > --- POWER ------------ Micro Antimatter Reactor Light Quantum Reactor > --- PROPULSION ------- Myomer Leg Myomer Leg Myomer Leg Biometal Leg Biometal Leg Biometal Leg Biometal Leg Experimental Biometal Leg > --- UTILITY ---------- Advanced Cryofiber Web High-capacity Storage Unit Advanced Targeting Computer Experimental Armor Integrity Analyzer Wardrone Bay > --- WEAPON ----------- Matter Neutralizer Sigix Broadsword > --- INVENTORY -------- Compact Wheel Compact Wheel Experimental Energy Well Advanced Weight Redist. System Improved Armor Integrity Analyzer Layered Heavy Armor Plating Advanced Force Field Mobile Refinery Mk. CCLXVII Wardrone Bay Compact HERF Cannon Experimental Neutron Missile Launcher Core Stripper Vortex Lance [Rating: 260] Favorites ----------- Power Reinforced Deuterium Engine Engine Reinforced Deuterium Engine Power Core Fission Core Reactor Assembled Flux Generator Propulsion Armored Treads Treads Armored Treads Leg Assembled Alloy Leg Wheel Armored Huge Wheel Hover Unit Combat Antigrav System Flight Unit Electron Diverter Utility High-capacity Storage Unit Device Assembled Combat Suite Storage High-capacity Storage Unit Processor Experimental Core Analyzer Hackware Hacking Suite Protection Hardened Light Armor Plating Weapon Enhanced Autogun Energy Gun Gatling Laser Energy Cannon Assembled Focal Cannon Ballistic Gun Enhanced Autogun Ballistic Cannon Heavy Assault Cannon Launcher Heavy Missile Launcher Impact Weapon Great Maul Slashing Weapon Sigix Broadsword Piercing Weapon Plasma Lance Special Melee Weapon Advanced Datajack Build | -11 -10 -10 -9 -9 -9 -8 -8 -8 -8 -8 -8 -7 -7 -7 -7 -7 -6 -6 -6 -6 -6 -6 -5 -5 -4 -4 -4 -4 -3 -3 -3 -2 -2 -2 -1 ------- Run | Yrd Mat Min Mat Min Exi Min Mat Gar Mat Sto Gar Fac Low Low Zio Dee Pro Fac Ext Cet Arc Hub Fac Gar Fac Upp Upp War Pro Res Tes Res Qua Sec Acc Slots Evolved 18 | . . . 2 . . . 2 . . . . 2 . . . . . 2 . . . . 2 . 2 . . . . 2 . 2 . . 2 Power 1 | . . . . . . . . . . . . . . . . . . 1 . . . . . . . . . . . . . . . . . Propulsion 6 | . . . 1 . . . 1 . . . . 1 . . . . . . . . . . . . . . . . . 1 . 1 . . 1 Utility 10 | . . . 1 . . . 1 . . . . 1 . . . . . 1 . . . . 1 . 2 . . . . 1 . 1 . . 1 Weapon 1 | . . . . . . . . . . . . . . . . . . . . . . . 1 . . . . . . . . . . . . Parts Attached 474 | 7 6 3 31 10 9 7 28 9 25 4 1 3 3 5 4 32 13 4 9 12 1 18 6 3 16 5 . 23 2 23 13 31 14 23 71 Power 56 | 1 1 . 2 1 3 1 2 1 2 . . . . . . 3 1 3 1 2 . 4 1 . . . . 1 . 3 2 4 2 5 10 Engine 18 | 1 1 . 2 1 2 . 2 1 2 . . . . . . 1 1 2 1 . . . . . . . . . . . . . . . 1 Core 5 | . . . . . . 1 . . . . . . . . . 1 . 1 . . . 2 . . . . . . . . . . . . . Reactor 33 | . . . . . 1 . . . . . . . . . . 1 . . . 2 . 2 1 . . . . 1 . 3 2 4 2 5 9 Propulsion 135 | 2 2 . 6 3 2 4 8 3 9 2 1 1 . . . 10 7 . 3 2 . 5 . 1 3 . . 6 . 8 . 6 1 5 35 Treads 41 | 2 1 . 4 3 2 3 4 3 3 1 1 . . . . 2 1 . 1 1 . 2 . . . . . . . . . . 1 1 5 Leg 35 | . . . . . . . . . . . . . . . . . . . . 1 . 3 . 1 3 . . 6 . 1 . . . . 20 Wheel 18 | . 1 . 1 . . 1 3 . 5 1 . 1 . . . . 1 . . . . . . . . . . . . . . . . . 4 Hover 37 | . . . . . . . . . 1 . . . . . . 8 5 . 2 . . . . . . . . . . 7 . 5 . 4 5 Flight 4 | . . . 1 . . . 1 . . . . . . . . . . . . . . . . . . . . . . . . 1 . . 1 Utility 184 | 2 2 . 10 4 2 . 12 2 9 2 . 2 2 4 2 14 2 1 5 4 . 9 2 2 9 4 . 9 2 8 7 13 8 9 21 Device 91 | 1 1 . 4 3 1 . 2 1 3 . . 1 2 2 2 6 . . . 1 . 5 1 1 6 3 . 5 2 3 2 8 7 4 14 Storage 16 | 1 1 . 1 . . . 1 . . . . . . 1 . 1 1 . 1 1 . 1 1 . 1 . . . . 1 1 1 . . 1 Processor 21 | . . . . . . . . . . . . . . . . 1 . 1 . . . 2 . 1 1 . . 2 . 2 1 1 . 3 6 Hackware 11 | . . . . . . . 4 . 1 1 . 1 . . . . . . 2 . . . . . . . . . . 1 1 . . . . Protection 45 | . . . 5 1 1 . 5 1 5 1 . . . 1 . 6 1 . 2 2 . 1 . . 1 1 . 2 . 1 2 3 1 2 . Artifact . | . . . . . . . . . . . . . . . . . . . . . . . . . . . . . . . . . . . . Weapon 99 | 2 1 3 13 2 2 2 6 3 5 . . . 1 1 2 5 3 . . 4 1 . 3 . 4 1 . 7 . 4 4 8 3 4 5 Energy Gun 11 | 1 . . . . . 2 . . . . . . 1 . . 3 . . . 1 . . . . . . . . . . 1 . 1 1 . Energy Cannon 17 | . 1 . 4 . . . 1 . . . . . . 1 . . . . . . . . 2 . . 1 . 1 . 1 1 . . 1 3 Ballistic Gun 24 | 1 . 1 6 2 1 . 4 1 . . . . . . . . . . . 2 . . . . 2 . . 3 . . . . . . 1 Ballistic Cannon 10 | . . 1 . . . . . . 2 . . . . . . . 1 . . 1 . . . . . . . 1 . . 1 3 . . . Launcher 15 | . . 1 2 . . . 1 1 1 . . . . . 2 . 2 . . . . . . . . . . 1 . 1 . 1 . 2 . Special Weapon . | . . . . . . . . . . . . . . . . . . . . . . . . . . . . . . . . . . . . Impact Weapon 3 | . . . . . . . . 1 . . . . . . . 1 . . . . . . . . . . . . . . . . 1 . . Slashing Weapon 8 | . . . . . . . . . . . . . . . . 1 . . . . . . 1 . 2 . . . . 1 . 2 1 . . Piercing Weapon 7 | . . . . . 1 . . . 1 . . . . . . . . . . . . . . . . . . 1 . 1 1 1 . . 1 Special Melee Weapon 4 | . . . 1 . . . . . 1 . . . . . . . . . . . 1 . . . . . . . . . . 1 . . . Unidentified Prototypes 107 | . . . 4 1 1 . 3 . 1 . . . . . 5 11 2 . 1 7 . 3 1 . 3 . . 9 . 8 8 11 9 12 7 Corrupted Parts 1 | . . . . . . . . . . . . . . . . . . . . . . . . . . . . . 1 . . . . . . System Corruption 4 | . . . . . . . . . . . . . . . . . . . . . . . . . . . . . 4 . . . . . . Parts Lost 117 | . 3 . . . 3 1 . 3 2 . . . . 1 . 4 4 . 4 . . 6 1 1 9 . . 1 1 . . . 4 17 52 Power 17 | . 1 . . . 1 . . 1 . . . . . . . . . . 1 . . 1 1 . . . . . . . . . 1 3 7 Propulsion 45 | . 1 . . . 1 . . . 1 . . . . . . 2 2 . 2 . . 2 . . 4 . . . . . . . . 6 24 Utility 43 | . 1 . . . 1 1 . 2 . . . . . 1 . 2 1 . 1 . . 3 . . 4 . . 1 1 . . . 2 7 15 Weapon 12 | . . . . . . . . . 1 . . . . . . . 1 . . . . . . 1 1 . . . . . . . 1 1 6 Highest Loss Streak 17 | . 2 . . . 2 1 . 1 1 . . . . 1 . 1 2 . 1 . . 4 1 1 5 . . 1 1 . . . 3 10 17 To Critical Strikes 8 | . . . . . 3 . . . . . . . . . . . . . . . . . . . 1 . . . . . . . . 1 3 Average Backups 18 | 3 7 13 15 18 18 18 20 23 22 22 23 22 23 24 30 18 29 16 17 16 17 16 17 18 17 16 19 14 11 11 11 10 10 10 12 Power . | . . . . . . . . . . . . 1 . . 1 . . . . . . . . . . . . . . . . . . . . Propulsion 2 | 1 1 2 2 4 3 2 2 5 3 3 7 5 4 2 3 3 4 1 . . . . . 1 . . 1 . 1 1 . . . . 1 Utility 9 | . 1 2 5 7 7 12 12 12 12 12 12 10 11 13 14 10 17 11 11 11 12 12 10 11 13 12 14 9 5 4 5 4 4 3 4 Weapon 4 | . 3 7 5 5 5 3 3 5 4 4 3 4 5 6 7 3 5 4 4 4 3 3 4 5 3 3 4 4 5 5 6 6 5 5 4 Tool/Special . | . . . . . . . . . . . . . . . . . . . . . . . . . . . . . . . . . . . . Unused Backups 79 | . . . 10 1 8 1 3 1 7 . 1 2 2 . 2 4 5 . 1 2 . 2 . . 3 1 1 5 1 . 1 3 . 2 10 Power 10 | . . . . . 3 . . . . . . . 1 . 2 1 1 . . . . . . . . . . . . . . . . 1 1 Propulsion 15 | . . . 2 . . . 1 . 2 . . 2 1 . . 2 2 . . . . . . . . . . . . . . 1 . . 2 Utility 40 | . . . 6 . 4 1 1 1 4 . 1 . . . . . 2 . 1 2 . 2 . . 2 1 1 3 . . 1 2 . . 5 Weapon 12 | . . . 2 1 . . 1 . 1 . . . . . . 1 . . . . . . . . 1 . . 2 1 . . . . . 2 Tool/Special 2 | . . . . . 1 . . . . . . . . . . . . . . . . . . . . . . . . . . . . 1 . Average Slot Usage (%) 88 | . 99 100 99 99 86 100 99 99 83 82 81 83 84 87 81 86 84 98 94 93 100 94 86 84 86 85 84 89 93 91 87 89 91 90 68 Engine 5 | . 13 14 11 11 8 10 7 9 8 9 9 7 7 7 6 5 . 11 11 . . . . . . . . . . . . . . . . Reactor 2 | . . . . . . . . . . . . . . . . . . . . 6 13 6 7 5 5 4 4 5 5 4 9 8 7 7 6 Treads 12 | . 24 28 31 32 31 24 17 18 18 17 18 15 15 15 15 11 15 . . . . 1 . . . . . . . . . . . . 1 Leg 5 | . . . . . . . . . . . . . . . . . . . . . . 2 27 29 24 26 26 26 26 22 . . . . 20 Wheel 6 | . 2 . . . 1 8 17 18 11 9 9 15 15 15 15 9 11 . . . . . . . . . . . . . . . . . . Hover 6 | . . . . . . . . . . . . . . . . 10 3 33 32 32 33 26 . . . . . . . 4 28 26 29 29 3 Device 10 | . 13 14 8 6 6 . 1 1 5 . . 6 14 15 11 10 10 16 8 6 6 10 9 7 14 19 21 23 21 19 12 16 19 19 12 Storage 8 | . 14 14 11 11 11 11 9 9 9 9 9 7 7 7 6 5 7 6 6 6 6 6 8 11 9 9 10 10 10 9 9 8 9 12 5 Processor 3 | . . . . . . . . . . . . . . . . 5 7 9 13 13 13 15 8 9 10 1 . 1 5 6 12 8 6 6 8 Hackware 2 | . . . . . . . 18 12 5 17 9 6 . . . . . . 1 . . . . . . . . . . 1 . . . . . Protection 8 | . . . 13 15 11 22 6 13 11 8 9 7 7 9 9 9 3 6 6 12 13 5 4 4 4 5 5 8 9 8 8 8 5 3 1 Energy Gun 1 | . 3 1 . . . 9 . . . . . . 5 7 5 . . 5 5 . 4 3 . . . . . . . . . . . . 1 Energy Cannon 3 | . 10 12 7 . . . . . . . . . . 6 4 2 6 . . . . . 5 12 9 10 10 7 5 3 . 2 . . 1 Ballistic Gun 6 | . 14 2 13 21 12 11 16 15 8 4 16 14 3 . . 5 6 . . 10 7 7 5 . 4 5 5 5 10 6 . . . . . Piercing Weapon 1 | . . . . . . . . . . . 1 . 5 . 1 4 . 6 5 . . . . . . . . . . . 5 5 5 3 . Peak Build Rating 260 | 7 8 9 20 32 36 36 40 40 56 51 53 62 63 67 73 91 101 101 101 113 115 124 154 156 172 162 161 178 179 193 186 208 224 227 260 Average Rating 92 | 5 7 8 17 21 24 32 37 37 48 48 51 58 62 61 59 71 80 98 91 103 114 107 139 152 161 156 156 166 177 183 167 200 209 217 187 On Entrance 90 | . 7 8 9 20 25 31 31 40 35 49 51 51 61 57 63 60 75 91 101 83 113 114 92 154 150 159 155 157 177 177 164 173 206 222 101 Avg Prop Armor Cover (%) 12 | . 12 . 12 . 11 14 14 13 11 14 11 11 11 13 13 13 14 . 8 . . 7 . . 3 3 . . . 3 . . 1 2 13 Naked Turns 4 | . . . . . . . . . . . . . . . . . . . . . . . . . . . . . . . . . . . 4 Heaviest Build 267 | 14 30 32 64 66 73 70 98 102 128 127 121 123 135 241 245 241 267 67 71 101 101 104 129 135 132 136 132 159 134 137 121 117 114 130 134 Greatest Support 215 | 40 40 40 60 63 63 60 28 22 28 28 28 40 40 40 40 70 72 72 72 61 61 90 150 150 150 130 130 150 150 150 115 126 126 123 215 Greatest Overweight (x) 34 | . 1 . 5 5 6 4 4 4 10 4 4 3 3 6 6 6 9 . 1 2 1 2 . . 4 1 1 1 . 1 1 1 1 34 11 Average Overweight (x) 1 | . . . . . . 3 2 4 4 3 3 3 3 3 5 2 5 . . . 1 . . . . . . . . . . . . . . Largest Inventory Capacity 35 | 8 15 15 20 20 20 20 25 25 25 25 25 25 25 35 35 35 35 20 20 20 20 20 20 20 20 20 20 20 20 20 20 20 20 22 22 Average Capacity 22 | 7 11 15 17 20 20 20 21 25 25 25 25 25 25 31 34 23 33 20 20 20 20 20 20 20 20 19 20 20 20 20 20 20 20 20 20 Most Carried 35 | 4 11 15 20 20 20 20 25 25 25 25 25 25 25 32 35 35 35 20 20 20 20 20 20 20 20 20 20 20 20 20 20 20 20 22 22 Average Carried 21 | 3 7 13 16 19 18 19 21 24 24 24 24 24 25 26 33 21 32 19 19 19 20 19 19 19 19 18 19 19 19 19 19 19 19 19 19 Final Capacity 35 | 8 15 15 20 20 20 20 25 25 25 25 25 25 25 35 35 35 20 20 20 20 20 20 20 20 20 20 20 20 20 20 20 20 20 22 7 Final Carried 35 | 4 11 15 20 20 20 20 25 25 25 25 25 25 25 32 35 35 20 20 20 20 20 20 20 20 20 20 20 20 20 20 20 20 20 22 2 Class Distribution -------------------- 40% | Scavenger-Mutant 17% | Mutant 12% | Hauler-Mutant 9% | Scavenger-Golem 5% | Hacker-Mutant 4% | Scavenger-Tank 4% | Trapper-Mutant Dominant Class ---------------- Mutant | -10/Materials Mutant | -10/Mines Mutant | -9/Materials Mutant | -9/Mines Mutant | -9/Exiles Mutant | -8/Mines Hacker-Mutant | -8/Materials Scavenger-Mutant | -8/Garrison Scavenger-Mutant | -8/Materials Scavenger-Mutant | -8/Storage Scavenger-Mutant | -8/Garrison Scavenger-Mutant | -7/Factory Trapper-Mutant | -7/Lower Caves Hauler-Mutant | -7/Lower Caves Hauler-Mutant | -7/Zion Scavenger-Mutant | -7/Deep Caves Hauler-Mutant | -6/Proximity Caves Scavenger-Mutant | -6/Factory Scavenger-Mutant | -6/Extension Scavenger-Mutant | -6/Cetus Scavenger-Mutant | -6/Archives Scavenger-Mutant | -6/Hub_04(d) Scavenger-Mutant | -5/Factory Scavenger-Golem | -5/Garrison Scavenger-Golem | -4/Factory Scavenger-Golem | -4/Upper Caves Scavenger-Golem | -4/Upper Caves Scavenger-Gunner | -4/Warlord Scavenger-Tank | -3/Proximity Caves Scavenger-Tank | -3/Research Scavenger-Mutant | -3/Testing Scavenger-Mutant | -2/Research Scavenger-Mutant | -2/Quarantine Scavenger-Mutant | -2/Section 7 Scavenger-Mutant | -1/Access Resources | -11 -10 -10 -9 -9 -9 -8 -8 -8 -8 -8 -8 -7 -7 -7 -7 -7 -6 -6 -6 -6 -6 -6 -5 -5 -4 -4 -4 -4 -3 -3 -3 -2 -2 -2 -1 ----------- Run | Yrd Mat Min Mat Min Exi Min Mat Gar Mat Sto Gar Fac Low Low Zio Dee Pro Fac Ext Cet Arc Hub Fac Gar Fac Upp Upp War Pro Res Tes Res Qua Sec Acc Matter Collected 20493 | 284 269 80 641 290 998 394 1344 1015 1925 768 514 266 294 281 316 1355 1056 44 343 398 40 845 187 305 1530 192 87 834 350 672 280 520 310 1053 413 Remotely . | . . . . . . . . . . . . . . . . . . . . . . . . . . . . . . . . . . . . Salvage Created 34536 | 116 566 7 1074 578 541 505 1773 1056 1935 1037 490 364 320 500 70 1757 1203 76 920 233 40 1233 185 571 3491 374 528 1228 791 1112 939 558 1094 4831 2440 Parts 1744 | 6 32 3 69 42 75 32 111 41 125 44 29 21 19 14 4 84 89 6 46 9 4 54 13 20 148 19 18 49 23 28 49 26 45 228 119 Haulers Intercepted 35 | . 1 . 5 . . . 5 . 5 3 . 1 . . . . . . . . . 1 . . 5 . . . . 3 1 1 1 1 2 Recyclers Shooed 12 | . 1 . 1 . . . 1 . 1 . . 1 . 1 . . . . . . . . . . 4 . . . . . . . . . 2 Parts Field Recycled . | . . . . . . . . . . . . . . . . . . . . . . . . . . . . . . . . . . . . Retrieved Matter . | . . . . . . . . . . . . . . . . . . . . . . . . . . . . . . . . . . . . Parts Self-Destructed 163 | . . . . . . . . . . . . . 17 13 . . 84 . . . . . . . . 19 11 . 19 . . . . . . Prevented 10 | . . . . . . . . . . . . . . . . . . . . . . . . . . . 7 . 3 . . . . . . Parts Restored . | . . . . . . . . . . . . . . . . . . . . . . . . . . . . . . . . . . . . Kills | -11 -10 -10 -9 -9 -9 -8 -8 -8 -8 -8 -8 -7 -7 -7 -7 -7 -6 -6 -6 -6 -6 -6 -5 -5 -4 -4 -4 -4 -3 -3 -3 -2 -2 -2 -1 ------- Run | Yrd Mat Min Mat Min Exi Min Mat Gar Mat Sto Gar Fac Low Low Zio Dee Pro Fac Ext Cet Arc Hub Fac Gar Fac Upp Upp War Pro Res Tes Res Qua Sec Acc Combat Hostiles Destroyed 509 | . 11 3 17 8 5 15 28 20 35 20 14 6 8 11 1 19 19 3 13 2 . 9 2 14 47 8 9 17 10 8 11 4 11 71 30 Melee 84 | . . . . . . . . 1 . . . 1 . . . 4 . . 2 . . . . . . . . . . . 7 4 7 48 10 Guns 182 | . 8 . 5 8 1 4 26 19 15 . 10 5 5 4 1 11 10 1 4 2 . 8 . . 9 . . 4 5 7 . . 3 . 7 Cannons 127 | . 3 . 2 . . . 2 . 12 17 . . . 2 . . 9 . . . . . 2 13 29 8 8 13 4 . . . . . 3 AOE 104 | . . 3 10 . 4 11 . . 8 3 4 . 3 5 . . . 2 7 . . 1 . . 9 . . . . . 4 . . 21 9 Classes Destroyed 36 | 2 4 1 4 1 3 1 . . 1 1 . 1 1 . 1 3 2 . 1 . . . . . . . . 2 . . 1 1 1 2 2 Worker 33 | . . . 2 2 . 1 5 . 6 3 . . . . . . . 1 . . . 5 . . 1 . . . . . 2 . . 4 1 Builder 25 | . . . 1 1 . 1 1 . 7 . . . . . . . . . . . . 2 1 . 4 . . . . 1 1 . . 3 2 Tunneler 10 | 2 . . . 2 . . 1 . 2 . . . . . . . . . 1 . . . . . 1 . . . . . . . . . 1 Hauler 35 | . 1 . 5 . . . 5 . 5 3 . 1 . . . . . . . . . 1 . . 5 . . . . 3 1 1 1 1 2 Recycler 34 | 1 . . 4 4 . 1 1 . 5 4 . 1 . . . . . . 3 . . . . . 3 . . . . 1 1 1 . 2 2 Minesweeper 6 | . . . . . . . . . . . . . 1 1 . . 1 . . . . . . . . . . . 3 . . . . . . Mechanic 2 | . . . . . . . . . . 1 . . . . . . . . . . . . . . . . . . . . . . . 1 . Operator 14 | . 2 . 1 . . . . . 2 1 . . . . . . . . 2 . . . . . . . . . . . . 1 2 3 . Drone 1 | . . . . . . . . . . . . . . . . . . . . . . . . . . . . . . . . . . 1 . Turret 1 | . . . . . 1 . . . . . . . . . . . . . . . . . . . . . . . . . . . . . . Watcher 25 | . 2 . 2 . . . 4 1 4 1 . . . . . . . . 2 2 . 2 . . 2 . . . . . . 1 1 1 . Swarmer 121 | . . 3 10 3 . 8 7 . 6 4 6 3 6 8 . . 3 3 7 . . . . 8 4 4 5 1 1 . . . 4 13 4 Cutter 3 | . . . . . . . . . . . . . . . . . . . . . . . . . . . . . . . . . . 3 . Saboteur 2 | . . . . . . . . . . . . . . . . . . . . . . . . . . . . . . . . 1 . 1 . Grunt 161 | . 11 . 4 3 . 6 12 16 17 8 4 1 1 2 . . 4 . 4 . . . . 2 18 2 4 7 6 7 1 . . 15 6 Brawler 10 | . . . . 2 . . 1 . . . . . . . . . 1 . . . . . . . 3 . . 2 . . . . . . 1 Duelist 12 | . . . 1 . . . . 1 1 . . . . . . . . . . . . . . . 2 1 . . 1 . . . . 3 2 Protector 11 | . . . . . . . . . . . . . . . . . 4 . . . . 2 . . 2 . . 2 . . . . . 1 . Researcher 3 | . . . . . . . . . . . . . . . . . . . . . . . . . . . . . . . 1 . . 2 . Sentry 51 | . . . 2 . . . 8 2 9 7 4 . 1 1 . . 1 . 1 . . 1 . 2 4 . . . 1 1 . 1 . 4 1 Demolisher 6 | . . . . . . . . . . . . . . . . . 6 . . . . . . . . . . . . . . . . . . Specialist 7 | . . . . . . . . . . . . . . . . . . . . . . . . . . . . 1 . . 2 . . 2 2 Hunter 29 | . . . . . . 1 . 1 1 1 . 1 . . . . . . . . . . 1 2 6 . . 1 . . 3 . 1 8 2 Programmer 42 | . . . . . . . . . . . . 1 . . . . . . . . . . . . 7 1 . 1 . . 5 2 5 15 5 Heavy 3 | . . . . . . . . . 1 . . . . . . . . . . . . . 1 . . . . . . . . . . 1 . Q-Series 3 | . . . . . . . . . . . . . . . . . . . . . . . . . . . . . . . . . . . 3 Behemoth 4 | . . . . . . . . . . . . . . . . . . . 1 . . . . . 1 . . . 1 . . . . . 1 Cetus Guard 2 | . . . . . . . . . . . . . . . . . . . . 2 . . . . . . . . . . . . . . . S7 Guard 2 | . . . . . . . . . . . . . . . . . . . . . . . . . . . . . . . . . . 2 . Enhanced Grunt 2 | . . . . . . . . . . . . . . . . . . . . . . 2 . . . . . . . . . . . . . Lightning 6 | . . . . . . . . . . . . . . . . . . . . . . 6 . . . . . . . . . . . . . Tracker 4 | . . . . . . . . . . . . . . . . . . . . . . . . . . . . . . . . . . 2 2 Investigator 1 | . . . . . . . . . . . . . . . . . . . . . . . . . . . . . . . . . . . 1 Striker 1 | . . . . . . . . . . . . . . . . . . . . . . . . . . . . . . . . . . . 1 Executioner 2 | . . . . . . . . . . . . . . . . . . . . . . . . . . . . 2 . . . . . . . Fortress 1 | . . . . . . . . . . . . . . . . . . . . . . . . . . . . . . . . . 1 . . Zionite 8 | . . . . . 8 . . . . . . . . . . . . . . . . . . . . . . . . . . . . . . Z-Technician 5 | . . . . . . . . . . . . . . . . 5 . . . . . . . . . . . . . . . . . . . Z-Light 11 | . . . . . . . . . . . . . . . . 11 . . . . . . . . . . . . . . . . . . . Decomposer 1 | . . . . . . . . . . . . . . 1 . . . . . . . . . . . . . . . . . . . . . Packrat 5 | . . . . . . . . . . . . . 1 3 . . . . . . . . . . . . 1 . . . . . . . . Assembler 2 | . . . . . . . . . . . . . . . . 2 . . . . . . . . . . . . . . . . . . . Assembled 4 | . . . . . 4 . . . . . . . . . . . . . . . . . . . . . . . . . . . . . . Golem 7 | . . . . . . . . . . . . . . . . 7 . . . . . . . . . . . . . . . . . . . Surgeon 1 | . . . . . . . . . . . . . . . . . . . . . . . . . . . . 1 . . . . . . . Wizard 1 | . . . . . . . . . . . . . . . . . . . . . . . . . . . . 1 . . . . . . . Mutant 1 | . . . . . . . . . . . . . . . 1 . . . . . . . . . . . . . . . . . . . . Best Kill Streak 13 | 2 3 3 7 3 7 4 8 3 12 5 4 2 3 4 1 5 3 3 5 3 . 10 1 4 11 4 5 6 4 5 8 2 3 13 6 Combat Bots Only 12 | . 3 3 5 3 4 4 4 3 5 3 4 2 3 4 1 4 3 3 4 2 . 5 1 4 8 4 5 5 4 4 6 2 3 12 5 Max Kills in Single Turn 7 | 1 1 2 5 2 2 4 2 2 5 4 4 1 2 2 1 1 1 2 2 2 . 7 1 1 4 1 1 2 1 1 3 1 1 7 5 Gunslinging 1 | . . . 1 1 . . 1 1 . . . . . . . . . . . . . . . . . . . . . . . . . . . Exploded 6 | . . 2 3 . 2 3 . . 3 3 4 . 2 2 . . . 2 2 . . 1 . . 2 . . . . . 3 . . 6 4 Melee 1 | . . . . . . . . 1 . . . 1 . . . 1 . . 1 . . . . . . . . . . . 1 1 1 1 1 Uniques/NPCs Destroyed 5 | . . . . . 4 . . . . . . . . . . 1 . . . . . . . . . . . . . . . . . . . 8R-AWN (-9/Exiles) EX-HEX (-9/Exiles) EX-DEC (-9/Exiles) EX-BIN (-9/Exiles) Z-Imprinter (-7/Deep Caves) Combat | -11 -10 -10 -9 -9 -9 -8 -8 -8 -8 -8 -8 -7 -7 -7 -7 -7 -6 -6 -6 -6 -6 -6 -5 -5 -4 -4 -4 -4 -3 -3 -3 -2 -2 -2 -1 -------- Run | Yrd Mat Min Mat Min Exi Min Mat Gar Mat Sto Gar Fac Low Low Zio Dee Pro Fac Ext Cet Arc Hub Fac Gar Fac Upp Upp War Pro Res Tes Res Qua Sec Acc Hostile Shots Fired 4203 | . 59 5 71 16 52 83 115 82 126 86 33 42 48 55 . 99 96 6 79 20 . 212 6 81 290 37 61 89 19 39 173 22 151 988 862 Missed 1403 | . 18 . 22 3 10 19 32 21 34 28 12 7 16 21 . 53 28 2 34 7 . 52 1 22 121 13 25 42 4 16 89 10 62 348 231 Hits 2800 | . 41 5 49 13 42 64 83 61 92 58 21 35 32 34 . 46 68 4 45 13 . 160 5 59 169 24 36 47 15 23 84 12 89 640 631 Melee 27 | . . . . . 1 . . . . . . . . . . 1 4 . . . . . . . . 3 . 1 . . . 1 . 8 8 Projectile 2773 | . 41 5 49 13 41 64 83 61 92 58 21 35 32 34 . 45 64 4 45 13 . 160 5 59 169 21 36 46 15 23 84 11 89 632 623 AOE 12 | . . . . . . . . . . . . . . . . . 5 . . . . . . . . . . . . . . . . 3 4 Critical Strikes 164 | . 1 . 1 . 22 2 3 3 6 1 . . . . . . 2 . . 3 . 12 . 1 8 2 1 3 3 1 2 . 8 55 24 Actively Blocked 34 | . . . . . . . . . . . . . . . . . 1 . . 1 . . . . . . . . . . . . . 19 13 Part Disruptions 11 | . . . . . . . . . . . . . . . . 1 . . . . . . . . . . . 1 . . . . 1 4 4 Damage Taken 47588 | . 549 60 680 87 701 1020 1069 857 1540 789 360 542 368 419 . 1469 1016 55 663 229 . 2374 396 893 2986 389 520 827 273 250 1085 88 1603 9374 14057 Core 4943 | . 122 . 60 21 68 64 89 41 169 101 65 47 . . . 158 159 . 143 13 . 409 78 32 236 . 95 89 29 12 101 6 91 941 1504 Absorbed by Shields 2744 | . . . . 20 60 . 103 96 . . . . . . . . 14 . 10 144 . . . 5 21 . . 428 287 261 . . . 239 1056 Reduced by Siege Mode 88 | . . . . . . . . . . . . . . . . . . . . . . . . . . . . . . . . . . . 88 Redirected to Shielding 335 | . . . . . . . . . . . . . . . . 113 51 . . 41 . 130 . . . . . . . . . . . . . Ignored by Resistances 11935 | . . . . . . . 4 32 . 106 . . . . . . . . . . . 1647 . . 919 84 111 258 56 106 273 169 475 7695 . Regen/Repaired (Parts) 11389 | . 68 . 47 . . . 386 . 973 291 . . . . . . . . . . . . . . . . . 103 . . . . 327 6342 2852 Core Remaining (%) 55 | 100 . 51 . . . 46 . . . . 15 . . . . . 48 . . . . 33 . 89 . . . . 60 . 91 . . 20 . Volleys Fired 1878 | 14 74 2 53 25 89 44 148 72 158 79 41 22 19 45 18 63 130 10 37 32 31 89 16 48 118 32 31 50 66 39 2 8 15 12 146 Largest 3 | 2 2 1 2 2 2 2 2 2 2 2 2 2 2 2 1 2 2 1 1 1 1 2 3 3 3 3 1 3 3 3 1 1 1 1 1 Hottest 240 | 70 80 30 136 46 46 92 92 50 50 50 50 50 105 165 85 55 55 60 60 240 60 95 85 95 95 83 88 101 101 157 20 94 75 100 113 Shots Fired 2923 | 28 148 2 96 50 129 81 295 137 232 89 81 44 32 58 18 90 155 10 37 32 31 127 25 68 255 34 31 109 112 104 2 8 15 12 146 Gun 1969 | 28 118 . 44 50 125 74 285 136 148 20 80 44 29 18 6 90 109 9 33 30 31 127 8 . 74 1 . 42 46 62 . . 15 1 86 Cannon 885 | . 30 . 43 . . . 10 . 78 68 . . . 36 12 . 46 . . 2 . . 17 68 172 33 31 67 66 42 . 8 . . 56 Launcher 69 | . . 2 9 . 4 7 . 1 6 1 1 . 3 4 . . . 1 4 . . . . . 9 . . . . . 2 . . 11 4 Special . | . . . . . . . . . . . . . . . . . . . . . . . . . . . . . . . . . . . . Kinetic 1839 | 14 74 . 41 50 125 54 279 136 226 88 80 44 13 5 6 90 109 . 1 31 9 101 8 . 74 1 . 59 46 62 . . . . 13 Thermal 758 | 14 74 . 46 . . 20 6 . . . . . 16 49 12 . 46 . . 1 . . 15 44 160 33 22 50 66 39 . . . . 45 Explosive 61 | . . 2 9 . 4 7 . 1 6 1 1 . 3 4 . . . 1 4 . . . . . 9 . . . . . . . . 5 4 Electromagnetic 97 | . . . . . . . 10 . . . . . . . . . . . . . . . 2 24 12 . 9 . . 3 . 8 15 3 11 Slashing 74 | . . . . . . . . . . . . . . . . . . . . . . . . . . . . . . . . . . 1 73 Entropic 5 | . . . . . . . . . . . . . . . . . . . . . . . . . . . . . . . 2 . . 3 . Phasic 89 | . . . . . . . . . . . . . . . . . . 9 32 . 22 26 . . . . . . . . . . . . . Robot Hit Streak 42 | 5 13 . 15 6 19 8 23 23 18 14 7 13 4 13 6 9 9 4 10 9 8 8 9 8 42 14 14 18 22 21 11 1 3 15 27 Robot Miss Streak 8 | 5 5 . 3 3 3 3 8 2 5 4 4 3 3 5 1 3 5 . 2 4 1 6 3 2 2 2 2 5 1 3 . 1 1 1 3 Penetration Max 2 | . . . . . 1 . . . 1 1 . . . . . 1 1 . . 2 . 2 . 1 1 . . 1 1 1 . . . . 1 Secondary Targets 18 | . 2 . 1 2 . 2 3 1 1 . 1 1 2 1 . . . . . . . 1 . . . . . . . . . . . . . Max Gunslinging Chain 1 | . 1 . 1 1 . 1 1 1 1 . 1 1 1 1 . . . . . . . 1 . . . . . . . . . . . . . Capacitor 153 | . . . . . . . . . . . . . . . . . . . . . . . . . . 31 31 2 . . . . . . 89 Shots Hit Robots 2140 | 15 92 . 55 30 105 55 201 98 146 65 42 31 21 31 4 106 72 4 36 20 9 57 14 35 171 22 25 69 51 71 38 23 41 158 127 Core Hits 1255 | 4 36 3 38 21 45 29 78 38 88 36 23 13 20 25 2 51 43 5 28 13 3 39 5 15 214 12 11 39 23 26 18 8 16 106 81 Critical Kills 41 | . . . 2 . 3 . 1 1 . . 1 . . . 1 8 7 . . 4 . 7 . . 3 . . . 1 1 . . . . 1 Critical Parts Destroyed 58 | . 1 . . . 5 . 1 1 1 . . 1 . . 1 17 5 . 1 7 2 8 . . 3 . . 2 . 1 . . . . 1 Critical Strikes 167 | 1 5 . 3 . 8 2 2 2 6 5 1 1 . 1 2 30 12 . 3 16 2 16 . 5 7 . 1 3 1 2 3 5 2 11 9 Burn 8 | 1 4 . 1 . . 2 . . . . . . . . . . . . . . . . . . . . . . . . . . . . . Meltdown 1 | . . . 1 . . . . . . . . . . . . . . . . . . . . . . . . . . . . . . . . Destroy 97 | . 1 . 1 . 8 . 2 2 1 . 1 1 . . 2 19 12 . 1 16 2 15 . . 6 . . 2 1 2 . . . . 2 Blast 11 | . . . . . . . . . 5 5 . . . . . . . . . . . . . . . . . 1 . . . . . . . Corrupt 7 | . . . . . . . . . . . . . . . . . . . . . . . . 5 1 . 1 . . . . . . . . Smash 9 | . . . . . . . . . . . . . . . . 9 . . . . . . . . . . . . . . . . . . . Sever 14 | . . . . . . . . . . . . . . . . 1 . . . . . . . . . . . . . . . . 2 8 3 Impale 14 | . . . . . . . . . . . . . . 1 . 1 . . 1 . . . . . . . . . . . 2 5 . 3 1 Sunder 4 | . . . . . . . . . . . . . . . . . . . . . . . . . . . . . . . 1 . . . 3 Intensify 2 | . . . . . . . . . . . . . . . . . . . 1 . . 1 . . . . . . . . . . . . . Melee Attacks 644 | . . . . . 7 . . 20 1 1 15 8 2 1 5 69 . 5 14 . 1 . . . 2 . . . . . 68 42 58 256 69 Kinetic 13 | . . . . . . . . . . . . . . . . . . . . . . . . . . . . . . . . . 1 11 1 Impact 59 | . . . . . . . . 20 . . . . . . . 39 . . . . . . . . . . . . . . . . . . . Slashing 233 | . . . . . . . . . . . . . . . . 1 . . . . . . . . 2 . . . . . . 2 47 146 35 Piercing 294 | . . . . . 3 . . . 1 1 15 7 2 1 4 29 . 5 14 . . . . . . . . . . . 58 35 10 96 13 Entropic 33 | . . . . . . . . . . . . . . . . . . . . . . . . . . . . . . . 10 . . 3 20 Sneak Attacks 73 | . . . . . 4 . . 2 1 . . 2 2 1 1 9 . 2 6 . 1 . . . 2 . . . . . 8 8 2 14 8 Combat Hostiles 6 | . . . . . . . . . . . . 1 . . . . . . . . . . . . . . . . . . 1 . . 3 1 Follow-up Attacks 43 | . . . . . . . . . . . . . . . . 1 . . . . . . . . . . . . . . 5 1 5 31 . Damage Inflicted 96668 | 153 1018 165 1805 492 1850 1544 3405 1889 6080 3768 1156 563 825 1110 48 5215 1917 376 2036 514 160 2755 469 1598 11899 971 1155 3570 2044 2739 3386 1007 2506 17260 9220 Guns 25150 | 153 788 . 453 492 1581 823 3236 1622 1609 241 797 438 383 286 48 925 1015 66 937 514 160 1467 102 . 1094 . . 1033 1041 1244 . . 208 . 2394 Cannons 24047 | . 230 . 566 . . . 169 . 2750 3041 . . . 366 . . 902 . . . . . 367 1598 6006 971 1155 2537 1003 1482 . 146 . . 758 Explosions 21515 | . . 165 786 . 269 721 . . 1633 454 287 . 305 387 . . . 185 567 . . 1261 . . 4578 . . . . 13 975 . . 5966 2963 Melee 25882 | . . . . . . . . 267 65 32 72 125 137 71 . 4290 . 125 532 . . . . . 205 . . . . . 2411 861 2298 11294 3097 Ramming 74 | . . . . . . . . . 23 . . . . . . . . . . . . 27 . . 16 . . . . . . . . . 8 Kinetic 27522 | 56 399 . 415 492 1581 561 3157 1622 4359 3282 797 438 71 65 48 925 1015 . 13 514 160 1269 102 . 1094 . . 1805 1041 1244 . . . 461 536 Thermal 16572 | 97 619 . 604 . . 262 79 . 111 . . . 312 587 . . 902 . . . . . 315 751 5443 971 854 1765 1003 1348 . . . 112 437 Explosive 15503 | . . 165 786 . 269 721 . . 1522 454 287 . 305 387 . . . 185 567 . . . . . 4578 . . . . 13 . . . 2301 2963 Electromagnetic 4330 | . . . . . . . 169 . . . . . . . . . . . . . . 1261 52 847 563 . 301 . . 134 . 146 208 328 321 Impact 3294 | . . . . . . . . 267 . . . . . . . 3027 . . . . . . . . . . . . . . . . . . . Slashing 14442 | . . . . . . . . . . . . . . . . 33 . . . . . . . . 205 . . . . . . 50 2142 8410 3602 Piercing 7570 | . . . . . . . . . 65 32 72 125 137 71 . 1230 . 125 532 . . . . . . . . . . . 1586 811 156 2161 467 Entropic 6173 | . . . . . . . . . . . . . . . . . . . . . . . . . . . . . . . 1800 . . 3487 886 Phasic 1188 | . . . . . . . . . . . . . . . . . . 66 924 . . 198 . . . . . . . . . . . . . Highest Corruption 15 | . . . . . . . . 1 1 . . . . . . 2 2 . . . . 15 . . 3 3 . . 8 . . . . 4 . Average Corruption 2 | . . . . . . . . 1 1 . . . . . . 2 2 . . . . 9 . . 1 2 . . 4 . . . . 3 . Corruption Purged 4 | . . . . . . . . . 1 . . . . . . . . . . . . . . . . 3 . . . . . . . . . Corruption Blocked 12 | . . . . . . . . . . . . . . . . . . . . . . . . . . . . . . . 7 1 4 . . Effects 198 | . . . . . . . . 7 18 . . . . . . 23 33 . . . . 12 . . 27 15 . . 24 . . . . 39 . Message Errors 50 | . . . . . . . . . 6 . . . . . . 6 9 . . . . 2 . . 4 6 . . 5 . . . . 12 . Matter Fused 53 | . . . . . . . . 3 7 . . . . . . 7 11 . . . . 2 . . 7 1 . . 5 . . . . 10 . Heat Flow Errors 20 | . . . . . . . . 2 . . . . . . . 2 2 . . . . 1 . . 3 4 . . 3 . . . . 3 . Energy Discharges 21 | . . . . . . . . 1 1 . . . . . . 2 4 . . . . 1 . . 1 1 . . 3 . . . . 7 . Parts Rejected 1 | . . . . . . . . . . . . . . . . . . . . . . . . . . . . . . . . . . 1 . Data Loss (minor) 29 | . . . . . . . . 1 3 . . . . . . 6 3 . . . . 1 . . 5 2 . . 4 . . . . 4 . Data Loss (major) 9 | . . . . . . . . . 1 . . . . . . . . . . . . 1 . . 3 1 . . 1 . . . . 2 . Misfires 6 | . . . . . . . . . . . . . . . . . 2 . . . . 2 . . 1 . . . 1 . . . . . . Alerts 2 | . . . . . . . . . . . . . . . . . 1 . . . . . . . . . . . 1 . . . . . . Weapon Failures 7 | . . . . . . . . . . . . . . . . . 1 . . . . 2 . . 3 . . . 1 . . . . . . Overload Shots 1 | . . . . . . . . . . . . . . . . . . . . 1 . . . . . . . . . . . . . . . Overflow Damage 4998 | . . . 28 . 25 1 . 64 247 115 32 . 24 167 . 1355 8 . 81 . . 48 . 40 176 16 65 63 82 39 383 95 362 1116 366 Projectiles 740 | . . . . . . . . . 129 115 . . . 65 . . 8 . . . . . . 40 96 16 65 63 82 39 . . . . 22 Explosions 790 | . . . 28 . 25 1 . . 118 . . . . . . . . . 43 . . 48 . . 80 . . . . . 22 . . 360 65 Melee 3468 | . . . . . . . . 64 . . 32 . 24 102 . 1355 . . 38 . . . . . . . . . . . 361 95 362 756 279 Knockbacks 22 | . . . . . . . . . 3 5 . . . . . 10 . . . . . . . . . . . 4 . . . . . . . Impact 10 | . . . . . . . . . . . . . . . . 10 . . . . . . . . . . . . . . . . . . . Kinetic 11 | . . . . . . . . . 3 5 . . . . . . . . . . . . . . . . . 3 . . . . . . . Secondary 1 | . . . . . . . . . . . . . . . . . . . . . . . . . . . . 1 . . . . . . . Self-Inflicted Damage 1530 | . . 15 58 . 91 107 . . 51 . . . . 55 . . . . . . . 175 . . 250 . . . . . . . . 447 281 Shots 36 | . . 1 2 . 2 4 . . 2 . . . . 2 . . . . . . . 2 . . 14 . . . . . . . . 4 3 Rammed 4 | . . . . . . . . . 4 . . . . . . . . . . . . . . . . . . . . . . . . . . Targets Rammed 10 | . . . . . . . . . 5 . . . . . . . . . . . . 3 . . 1 . . . . . . . . . 1 Kicked 5 | . . . . . . . . . . . . . . . . . . . . . . 3 . . 1 . . . . . . . . . 1 Crushed 1 | . . . . . . . . . 1 . . . . . . . . . . . . . . . . . . . . . . . . . . Highest Temperature 463 | 120 273 . 300 42 57 254 342 244 278 26 211 163 198 198 196 244 179 60 250 218 237 214 14 50 463 232 294 200 199 244 20 214 434 302 226 Average Temperature 59 | 52 69 . 48 12 26 114 52 42 73 7 40 48 90 80 57 74 24 29 87 42 84 54 10 17 114 90 145 62 55 66 2 47 61 60 89 Received Heat Transfer 6781 | . 339 . 168 18 . 324 447 439 567 360 126 90 30 96 . 332 174 . 171 22 . 203 . 27 896 54 132 140 22 54 12 9 . 1084 445 Effects 6 | . . . . . . . . . . . . . . . . . . . . . 1 . . . . . . . . 1 . 1 1 2 . Shutdowns 1 | . . . . . . . . . . . . . . . . . . . . . . . . . . . . . . . . . 1 . . Energy Bleed 3 | . . . . . . . . . . . . . . . . . . . . . 1 . . . . . . . . 1 . . . 1 . Interference 2 | . . . . . . . . . . . . . . . . . . . . . . . . . . . . . . . . 1 . 1 . Siege Activations 1 | . . . . . . . . . . . . . . . . . . . . . . . . . . . . . . . . . . . 1 Total Turns 3 | . . . . . . . . . . . . . . . . . . . . . . . . . . . . . . . . . . . 3 Longest Duration 3 | . . . . . . . . . . . . . . . . . . . . . . . . . . . . . . . . . . . 3 Martial Activations . | . . . . . . . . . . . . . . . . . . . . . . . . . . . . . . . . . . . . Shielding Activations . | . . . . . . . . . . . . . . . . . . . . . . . . . . . . . . . . . . . . Robots Disrupted 1 | . . . . . . . . . . . . . . . . . . . . . . . . . . . . . . . . . . 1 . Combat Hostiles 1 | . . . . . . . . . . . . . . . . . . . . . . . . . . . . . . . . . . 1 . Robots Corrupted 10 | . . . . . . . . 1 . . . . . . . 5 . . . . . 2 . 1 . . 1 . . . . . . . . Combat Hostiles 6 | . . . . . . . . . . . . . . . . 4 . . . . . . . 1 . . 1 . . . . . . . . Parts Fried 30 | . . . . . . . 1 . . . . . . . . 2 . . . . . 10 . 4 6 . 2 . . 1 . 1 1 1 1 Impact Corruptions 24 | . . . . . . . . 2 . . . . . . . 22 . . . . . . . . . . . . . . . . . . . Robots Melted 3 | . . . 1 . . . . . . . . . . . . . . . . . . . . . . . . . 1 1 . . . . . Combat Hostiles 2 | . . . . . . . . . . . . . . . . . . . . . . . . . . . . . 1 1 . . . . . Parts Melted 17 | . 4 . 4 . . . . . . . . . . 2 . 3 . . . . . . . 1 2 . . 1 . . . . . . . Heat Transferred 13677 | 370 1924 . 1184 . . 666 148 . 100 . . . 700 944 . . 473 . . . . . 200 450 2783 550 450 874 550 731 . . . 100 480 Parts Sabotaged 5 | . . . . . . . . . . . . . . . . . . . . . . . . . . . . . . . . . . 1 4 Parts Stolen . | . . . . . . . . . . . . . . . . . . . . . . . . . . . . . . . . . . . . Parts Stripped 54 | . . . . . . . . . . . . . . . . . . . . . . . . . . . . . . . . . 18 16 20 Power Chain Reactions 3 | . . . . . . . . . . . . . . . . . . . . . . . . . . . . . . . . . . 3 . Alert | -11 -10 -10 -9 -9 -9 -8 -8 -8 -8 -8 -8 -7 -7 -7 -7 -7 -6 -6 -6 -6 -6 -6 -5 -5 -4 -4 -4 -4 -3 -3 -3 -2 -2 -2 -1 ------- Run | Yrd Mat Min Mat Min Exi Min Mat Gar Mat Sto Gar Fac Low Low Zio Dee Pro Fac Ext Cet Arc Hub Fac Gar Fac Upp Upp War Pro Res Tes Res Qua Sec Acc Maximum Alert Level 5 | . . . 1 . . 1 1 4 2 1 4 3 . . . . . . 1 1 . 5 4 3 4 . . . . 1 1 2 1 5 5 Low Security (%) 37 | 100 100 100 71 100 . 97 48 . 11 72 1 . . . . . . 100 57 30 100 25 . . . . . . . 99 67 14 1 13 . Level 1 22 | . . . 28 . . 2 51 19 25 27 12 . . . . . . . 42 69 . 10 . 22 . . . . . . 32 58 98 17 . Level 2 17 | . . . . . . . . 20 62 . 8 75 . . . . . . . . . 18 69 44 31 . . . . . . 27 . 19 . Level 3 10 | . . . . . . . . 48 . . 41 24 . . . . . . . . . . 27 32 51 . . . . . . . . 20 1 Level 4 9 | . . . . . . . . 12 . . 36 . . . . . . . . . . 1 3 . 17 . . . . . . . . 23 68 Level 5 1 | . . . . . . . . . . . . . . . . . . . . . . 17 . . . . . . . . . . . 5 9 High Security 1 | . . . . . . . . . . . . . . . . . . . . . . 25 . . . . . . . . . . . . 20 Max Security . | . . . . . . . . . . . . . . . . . . . . . . . . . . . . . . . . . . . . Peak Influence 2344 | 10 116 81 344 199 . 208 393 1234 626 314 1350 721 . . . . . 83 306 289 104 1808 1100 828 1445 . . . . 202 360 466 332 2059 2344 Initial 1180 | . . . . 133 . . 54 216 601 252 59 708 . . . . . 26 35 147 88 . 1100 326 434 . . . . 6 . 189 227 135 1180 Average 463 | 1 35 9 154 87 . 62 199 755 447 146 963 675 . . . . . 11 183 223 50 914 657 575 830 . . . . 53 126 327 257 784 1510 Influence Increases 23669 | 15 362 81 964 406 . 425 1067 1048 1382 840 1451 291 185 235 . . 390 110 898 352 28 2129 104 512 1681 190 215 551 235 408 682 753 433 2994 2252 Destroy 0b10 Robot/C 11580 | . 220 60 540 240 . 300 560 400 700 480 560 160 160 220 . . 300 60 480 160 . 520 40 280 900 160 180 480 200 160 240 80 220 1420 1100 Destroy 0b10 Robot/NC 1045 | 15 25 . 80 45 . 15 85 5 155 65 5 10 5 5 . . 40 5 40 10 5 85 5 . 90 . . 15 15 25 25 20 20 80 50 Destroy Leader 2124 | . 66 10 166 40 . 50 158 30 208 148 30 52 20 10 . . 20 10 44 . . 132 20 30 214 30 20 . 20 26 32 24 34 264 216 Allied During Kill 1182 | . . . 94 21 . . . . . 16 244 5 . . . . . . 224 161 5 318 . . . . . 41 . . . . . . 53 Successful Hack 733 | . 51 . 15 . . . 79 12 54 30 18 . . . . . . . 34 . . 43 4 . 60 . . . . 86 101 2 36 60 48 Disable Machine 1545 | . . . 15 . . 15 60 15 120 60 90 15 . . . . . . 15 15 15 450 . 30 120 . . . . 30 45 60 75 180 120 Anti-Garrison Action 1550 | . . . . . . . . 450 . . 350 . . . . . . . . . . 150 . 100 . . . . . . . 300 . . 200 Destroy Structure 2335 | . . 11 54 . . 45 5 76 130 41 94 4 . . . . . 20 31 6 3 401 20 72 282 . . . . 66 74 12 18 465 405 Partial Spotted 240 | . . . . . . . . 15 . . . . . . . . . 15 . . . . . . 15 . . . . 15 15 . 30 135 . Lose Combat Pursuer 1335 | . . . . 60 . . 120 45 15 . 60 45 . . . . 30 . 30 . . 30 15 . . . 15 15 . . 150 255 . 390 60 Influence Decreases 21560 | 15 362 81 620 750 . 284 875 147 2019 1345 193 952 774 335 . . 347 80 708 394 249 341 1651 150 1073 1046 491 526 555 417 344 687 597 1266 1886 Entered New Map 6592 | . . . . 211 . . 87 117 633 345 33 642 256 19 . . . 17 38 116 133 . 913 140 394 532 111 304 329 3 . 149 177 105 788 Time Decay 11269 | 15 322 81 580 519 . 274 638 . 766 530 . 270 518 306 . . 320 63 480 238 116 221 278 . 589 514 380 172 216 414 302 538 380 691 538 Lost Part 1067 | . 30 . . . . 10 . 30 20 . . . . 10 . . 27 . 30 . . 60 10 10 90 . . 10 . . . . 40 170 520 Lost Ally 650 | . 10 . 40 20 . . . . . 20 160 40 . . . . . . 160 40 . 60 . . . . . 40 10 . 10 . . . 40 Purge Threat 1982 | . . . . . . . 150 . 600 450 . . . . . . . . . . . . 450 . . . . . . . 32 . . 300 . Squads Dispatched 138 | . 3 . 4 . . . 1 . 4 7 . 8 . . . . . . 2 . . 15 1 . 13 . . . . 7 5 1 9 24 34 Investigation 20 | . 1 . 1 . . . 1 . 2 1 . 3 . . . . . . 1 . . . . . 1 . . . . 3 2 . 1 . 3 Extermination 22 | . . . . . . . . . . . . 1 . . . . . . . . . 1 . . 2 . . . . . 3 . 3 7 5 Reinforcement 35 | . 2 . 3 . . . . . 2 2 . . . . . . . . 1 . . 1 . . 3 . . . . 4 . 1 2 10 4 Assault 38 | . . . . . . . . . . . . 1 . . . . . . . . . 10 1 . 4 . . . . . . . . 5 17 Garrison 19 | . . . . . . . . . . 4 . 3 . . . . . . . . . 3 . . 3 . . . . . . . 3 . 3 Intercept 4 | . . . . . . . . . . . . . . . . . . . . . . . . . . . . . . . . . . 2 2 Searches Triggered . | . . . . . . . . . . . . . . . . . . . . . . . . . . . . . . . . . . . . Construction Impeded 7 | . . . 2 . . . . . 1 2 . . . . . . . . . . . . . . . . . . . . . . . 1 1 Haulers Reinforced 6 | . . . . . . . . . . . . . . . . . . . . . . . . . 1 . . . . 3 . . . 2 . Active Scanning Responses . | . . . . . . . . . . . . . . . . . . . . . . . . . . . . . . . . . . . . Cargo Convoy Interrupts . | . . . . . . . . . . . . . . . . . . . . . . . . . . . . . . . . . . . . Stealth | -11 -10 -10 -9 -9 -9 -8 -8 -8 -8 -8 -8 -7 -7 -7 -7 -7 -6 -6 -6 -6 -6 -6 -5 -5 -4 -4 -4 -4 -3 -3 -3 -2 -2 -2 -1 --------- Run | Yrd Mat Min Mat Min Exi Min Mat Gar Mat Sto Gar Fac Low Low Zio Dee Pro Fac Ext Cet Arc Hub Fac Gar Fac Upp Upp War Pro Res Tes Res Qua Sec Acc Distress Signals 69 | . 4 . . . . . 2 . 5 4 . . . . . . 18 1 1 1 . 3 . . 1 . . . . 6 2 10 2 1 8 Communications Jammed 439 | . . . . . . . . 2 . . . 1 . . . . . . 12 . . 23 11 . 153 . . 65 2 1 14 12 . 138 5 Distress Signals 411 | . . . . . . . . 2 . . . 1 . . . . . . 12 . . 23 1 . 153 . . 65 2 1 14 12 . 120 5 Times Spotted 1080 | . 23 3 30 15 12 14 48 22 49 30 20 12 7 9 . 54 20 1 25 9 . 44 3 14 64 9 10 83 10 28 32 23 18 139 200 Peak Tracking Total 37 | . 3 3 7 4 9 4 5 4 5 5 5 3 3 2 1 37 3 1 4 5 . 18 1 4 10 4 5 17 4 7 8 12 5 14 17 Tactical Retreats 62 | . . . . 2 3 . 7 2 1 . 1 2 . . . 10 1 . 2 . . 2 1 . . . 1 1 . . 3 8 . 12 3 Traps | -11 -10 -10 -9 -9 -9 -8 -8 -8 -8 -8 -8 -7 -7 -7 -7 -7 -6 -6 -6 -6 -6 -6 -5 -5 -4 -4 -4 -4 -3 -3 -3 -2 -2 -2 -1 ------- Run | Yrd Mat Min Mat Min Exi Min Mat Gar Mat Sto Gar Fac Low Low Zio Dee Pro Fac Ext Cet Arc Hub Fac Gar Fac Upp Upp War Pro Res Tes Res Qua Sec Acc Traps Triggered 41 | . 1 . . . . . 1 6 . . 6 2 . . . . 1 . 6 . . . . 2 2 . . . . . 1 . 3 6 4 Indirectly . | . . . . . . . . . . . . . . . . . . . . . . . . . . . . . . . . . . . . Trap Hack Attempts 103 | . . . 74 . . . 3 . 26 . . . . . . . . . . . . . . . . . . . . . . . . . . Triggered . | . . . . . . . . . . . . . . . . . . . . . . . . . . . . . . . . . . . . Disarmed 1 | . . . . . . . . . 1 . . . . . . . . . . . . . . . . . . . . . . . . . . Reprogrammed 11 | . . . 6 . . . 1 . 4 . . . . . . . . . . . . . . . . . . . . . . . . . . Reused 9 | . . . . . 3 . . . . . . . . . . 6 . . . . . . . . . . . . . . . . . . . Traps Extracted 15 | . . . 6 . . . 1 . 4 . . . . . . 4 . . . . . . . . . . . . . . . . . . . Installed 17 | . . . . . 3 . . . . . . . . . . 10 . . . . . . . . . . . . 4 . . . . . . Triggered . | . . . . . . . . . . . . . . . . . . . . . . . . . . . . . . . . . . . . Most Traps Carried 10 | . . . 6 6 6 . 1 1 4 4 4 4 10 10 10 10 10 6 6 6 6 6 6 6 6 6 6 6 8 8 . . . . . Objects Rigged 1 | . . . . . . . . . . . . . . . . . . . . . . 1 . . . . . . . . . . . . . Exploded 1 | . . . . . . . . . . . . . . . . . . . . . . 1 . . . . . . . . . . . . . Machines | -11 -10 -10 -9 -9 -9 -8 -8 -8 -8 -8 -8 -7 -7 -7 -7 -7 -6 -6 -6 -6 -6 -6 -5 -5 -4 -4 -4 -4 -3 -3 -3 -2 -2 -2 -1 ---------- Run | Yrd Mat Min Mat Min Exi Min Mat Gar Mat Sto Gar Fac Low Low Zio Dee Pro Fac Ext Cet Arc Hub Fac Gar Fac Upp Upp War Pro Res Tes Res Qua Sec Acc Machines Disabled 142 | . . . 1 . 7 1 4 8 8 4 12 1 . 1 . 1 6 . 3 1 1 31 . 4 8 . . 3 . 2 4 6 5 12 8 Max in Single Turn 19 | . . . 1 . 2 1 1 2 2 1 2 1 . 1 . 1 1 . 1 1 1 19 . 1 4 . . 1 . 1 1 1 1 1 1 Garrison Access 9 | . . . . . . . . . 1 . . . . . . . . . . . . 1 . . 1 . . . . . . 3 . 1 2 Garrison Relay 11 | . . . . . . . . 5 . . 4 . . . . . . . . . . . . 2 . . . . . . . . . . . Phase Generator 2 | . . . . . . . . 1 . . 1 . . . . . . . . . . . . . . . . . . . . . . . . Network Hub 3 | . . . . . . . . . . . . . . . . . . . . . . 3 . . . . . . . . . . . . . Machines Repaired . | . . . . . . . . . . . . . . . . . . . . . . . . . . . . . . . . . . . . Machines Dismantled . | . . . . . . . . . . . . . . . . . . . . . . . . . . . . . . . . . . . . Machines Sabotaged . | . . . . . . . . . . . . . . . . . . . . . . . . . . . . . . . . . . . . Overloaded Fab Kills . | . . . . . . . . . . . . . . . . . . . . . . . . . . . . . . . . . . . . Hacking | -11 -10 -10 -9 -9 -9 -8 -8 -8 -8 -8 -8 -7 -7 -7 -7 -7 -6 -6 -6 -6 -6 -6 -5 -5 -4 -4 -4 -4 -3 -3 -3 -2 -2 -2 -1 --------- Run | Yrd Mat Min Mat Min Exi Min Mat Gar Mat Sto Gar Fac Low Low Zio Dee Pro Fac Ext Cet Arc Hub Fac Gar Fac Upp Upp War Pro Res Tes Res Qua Sec Acc Machines Accessed 139 | . 7 . 9 2 2 . 14 3 16 12 3 3 . . . . . . 10 1 . 6 1 . 6 1 . 2 . 5 8 2 6 15 5 Terminals 92 | . 6 . 5 . . . 9 3 10 9 3 . . . . . . . 10 1 . 6 . . 4 . . . . 2 4 . 5 12 3 Fabricators 4 | . . . . . . . . . . . . 1 . . . . . . . . . . . . . . . . . 2 1 . . . . Repair Stations 10 | . 1 . 1 . . . 2 . 2 2 . 1 . . . . . . . . . . . . . . . . . . . . . 1 . Recycling Units 3 | . . . 1 . . . . . 1 . . . . . . . . . . . . . . . . . . . . 1 . . . . . Scanalyzers 13 | . . . 2 . . . 2 . 2 . . . . . . . . . . . . . . . 1 . . . . . 3 1 1 1 . Garrison Access 10 | . . . . . . . 1 . 1 1 . 1 . . . . . . . . . . 1 . 1 . . . . . . 1 . 1 2 Total Hacks 466 | . 17 . 25 2 5 . 67 5 83 38 8 10 . . . . . . 21 2 . 16 1 . 29 1 . 6 . 15 42 4 8 48 13 Successful 257 | . 10 . 17 2 5 . 47 1 57 27 2 3 . . . . . . 8 . . 7 1 . 11 1 . 6 . 6 14 3 4 21 4 Failed 206 | . 6 . 7 . . . 20 4 26 11 6 7 . . . . . . 13 2 . 9 . . 18 . . . . 9 27 1 4 27 9 Catastrophic 49 | . 1 . . . . . 1 1 5 2 . 2 . . . . . . 1 1 . 2 . . 5 . . . . 1 9 1 2 9 6 Database Lockouts 3 | . 1 . 1 . . . . . . . . . . . . . . . . . . . . . . . . . . . 1 . . . . Manual 175 | . 9 . 13 . 1 . 23 1 32 20 1 4 . . . . . . 2 1 . 14 . . 9 . . . . . 6 . 4 33 2 Terminals 295 | . 14 . 15 . . . 37 5 37 26 8 . . . . . . . 21 2 . 16 . . 25 . . . . 7 25 . 7 41 9 Fabricators 13 | . . . . . . . . . . . . 5 . . . . . . . . . . . . . . . . . 7 1 . . . . Repair Stations 54 | . 3 . 2 . . . 11 . 27 7 . 3 . . . . . . . . . . . . . . . . . . . . . 1 . Recycling Units 6 | . . . 1 . . . . . 4 . . . . . . . . . . . . . . . . . . . . 1 . . . . . Scanalyzers 64 | . . . 7 . . . 18 . 13 . . . . . . . . . . . . . . . 2 . . . . . 16 3 1 4 . Garrison Access 20 | . . . . . . . 1 . 2 5 . 2 . . . . . . . . . . 1 . 2 . . . . . . 1 . 2 4 Terminal Hacks 93 | . 5 . 2 2 5 . 13 1 11 9 2 . . . . . . . 6 . . 3 . . 8 1 . 6 . 3 6 . 1 8 1 Record 4 | . . . . . 4 . . . . . . . . . . . . . . . . . . . . . . . . . . . . . . Part Schematic 1 | . 1 . . . . . . . . . . . . . . . . . . . . . . . . . . . . . . . . . . Robot Analysis 7 | . 2 . . . . . 3 . 1 1 . . . . . . . . . . . . . . . . . . . . . . . . . Prototype ID Bank 8 | . . . 1 . . . . . 2 . . . . . . . . . . . . . . . . . . 5 . . . . . . . Open Door 18 | . . . . 2 . . . . . 3 1 . . . . . . . 5 . . . . . . 1 . 1 . . . . . 5 . Open DSF 4 | . . . . . . . . . . . . . . . . . . . . . . . . . 4 . . . . . . . . . . Level Access Points 1 | . . . . . . . . . . . . . . . . . . . . . . . . . 1 . . . . . . . . . . Branch Access Points 3 | . . . . . . . . . 1 . . . . . . . . . . . . . . . 1 . . . . 1 . . . . . Emergency Access Points 5 | . . . . . . . . 1 . . 1 . . . . . . . . . . . . . 1 . . . . . 1 . 1 . . Terminal Index 2 | . . . . . . . 1 . . . . . . . . . . . . . . . . . . . . . . . 1 . . . . Fabricator Index 1 | . . . . . . . . . . . . . . . . . . . . . . . . . . . . . . 1 . . . . . Repair Station Index 1 | . . . . . . . 1 . . . . . . . . . . . . . . . . . . . . . . . . . . . . Scanalyzer Index 1 | . . . . . . . 1 . . . . . . . . . . . . . . . . . . . . . . . . . . . . Unreport Threat 11 | . . . . . . . 1 . 4 3 . . . . . . . . . . . . . . . . . . . . 1 . . 2 . Locate Traps 7 | . 1 . 1 . . . 3 . 1 . . . . . . . . . . . . 1 . . . . . . . . . . . . . Maintenance Status 1 | . . . . . . . . . . . . . . . . . . . . . . . . . 1 . . . . . . . . . . Recall Investigation 2 | . . . . . . . . . . . . . . . . . . . . . . . . . . . . . . . 2 . . . . Hauler Manifests 3 | . . . . . . . 1 . 1 1 . . . . . . . . . . . . . . . . . . . . . . . . . Registered Components 2 | . . . . . . . 1 . 1 . . . . . . . . . . . . . . . . . . . . . . . . . . Registered Prototypes 2 | . . . . . . . 1 . . . . . . . . . . . . . . . . . . . . . . 1 . . . . . Zone Layout 8 | . 1 . . . . . . . . 1 . . . . . . . . 1 . . 2 . . . . . . . . 1 . . 1 1 Proto ID Catalog 1 | . . . . . 1 . . . . . . . . . . . . . . . . . . . . . . . . . . . . . . Fabricator Hacks 4 | . . . . . . . . . . . . 1 . . . . . . . . . . . . . . . . . 3 . . . . . Network Status 1 | . . . . . . . . . . . . . . . . . . . . . . . . . . . . . . 1 . . . . . Load Schematic 2 | . . . . . . . . . . . . 1 . . . . . . . . . . . . . . . . . 1 . . . . . Build 1 | . . . . . . . . . . . . . . . . . . . . . . . . . . . . . . 1 . . . . . Repair Station Hacks 44 | . 2 . 2 . . . 8 . 25 6 . 1 . . . . . . . . . . . . . . . . . . . . . . . Scan Component 23 | . 1 . 1 . . . 4 . 13 3 . 1 . . . . . . . . . . . . . . . . . . . . . . . Repair 21 | . 1 . 1 . . . 4 . 12 3 . . . . . . . . . . . . . . . . . . . . . . . . . Recycling Unit Hacks 2 | . . . 1 . . . . . 1 . . . . . . . . . . . . . . . . . . . . . . . . . . Report Inventory 2 | . . . 1 . . . . . 1 . . . . . . . . . . . . . . . . . . . . . . . . . . Scanalyzer 40 | . . . 6 . . . 13 . 7 . . . . . . . . . . . . . . . 1 . . . . . 6 3 1 3 . Insert Component 15 | . . . 2 . . . 5 . 2 . . . . . . . . . . . . . . . . . . . . . 1 1 1 3 . Analyze 12 | . . . 2 . . . 6 . 3 . . . . . . . . . . . . . . . . . . . . . 1 . . . . Retrieve Study 13 | . . . 2 . . . 2 . 2 . . . . . . . . . . . . . . . 1 . . . . . 4 2 . . . Garrison Access Hacks 7 | . . . . . . . 1 . 1 1 . . . . . . . . . . . . 1 . 1 . . . . . . . . 1 1 Unlock Access 3 | . . . . . . . 1 . . 1 . . . . . . . . . . . . 1 . . . . . . . . . . . . Seal Access 4 | . . . . . . . . . 1 . . . . . . . . . . . . . . . 1 . . . . . . . . 1 1 Unauthorized Hacks 67 | . 3 . 6 . . . 12 . 12 11 . 1 . . . . . . 2 . . 4 . . 1 . . . . . 2 . 2 9 2 Terminals 60 | . 3 . 6 . . . 12 . 9 9 . . . . . . . . 2 . . 4 . . 1 . . . . . 2 . 2 9 1 Track 11 | . 1 . . . . . . . . 2 . . . . . . . . . . . 1 . . . . . . . . 1 . 2 4 . Assimilate 2 | . 1 . . . . . . . . . . . . . . . . . . . . . . . . . . . . . 1 . . . . Botnet 21 | . 1 . 2 . . . 5 . 3 1 . . . . . . . . 2 . . 2 . . 1 . . . . . . . . 3 1 Detonate 1 | . . . . . . . . . . . . . . . . . . . . . . 1 . . . . . . . . . . . . . Operators 5 | . . . . . . . 2 . 1 1 . . . . . . . . . . . . . . . . . . . . . . . 1 . Skim 20 | . . . 4 . . . 5 . 5 5 . . . . . . . . . . . . . . . . . . . . . . . 1 . Fabricators 1 | . . . . . . . . . . . . 1 . . . . . . . . . . . . . . . . . . . . . . . Recompile 1 | . . . . . . . . . . . . 1 . . . . . . . . . . . . . . . . . . . . . . . Repair Stations . | . . . . . . . . . . . . . . . . . . . . . . . . . . . . . . . . . . . . Recycling Units 3 | . . . . . . . . . 3 . . . . . . . . . . . . . . . . . . . . . . . . . . Reject 1 | . . . . . . . . . 1 . . . . . . . . . . . . . . . . . . . . . . . . . . Recyclers 1 | . . . . . . . . . 1 . . . . . . . . . . . . . . . . . . . . . . . . . . Mask 1 | . . . . . . . . . 1 . . . . . . . . . . . . . . . . . . . . . . . . . . Scanalyzers . | . . . . . . . . . . . . . . . . . . . . . . . . . . . . . . . . . . . . Garrison Access 3 | . . . . . . . . . . 2 . . . . . . . . . . . . . . . . . . . . . . . . 1 Reprogram 1 | . . . . . . . . . . 1 . . . . . . . . . . . . . . . . . . . . . . . . . Watchers 1 | . . . . . . . . . . 1 . . . . . . . . . . . . . . . . . . . . . . . . . Jam 1 | . . . . . . . . . . . . . . . . . . . . . . . . . . . . . . . . . . . 1 Data Cores Recovered 7 | . . . . . . . . . 2 . . . . . . . . . 1 . . 1 . . . . . . . . . . 1 1 1 Used 3 | . . . . . . . . . . . . . . . . . . . . . . 1 . . . . . . . . . . 1 1 . Hacking Detections 100 | . 5 . 6 . . . 11 3 15 7 3 3 . . . . . . 6 1 . 6 . . 4 . . . . 5 7 1 4 9 4 Full Trace Events 6 | . . . 1 . . . 1 1 2 . . . . . . . . . 1 . . . . . . . . . . . . . . . . Feedback Events 1 | . . . . . . . . 1 . . . . . . . . . . . . . . . . . . . . . . . . . . . Corruption 1 | . . . . . . . . 1 . . . . . . . . . . . . . . . . . . . . . . . . . . . Feedback Blocked . | . . . . . . . . . . . . . . . . . . . . . . . . . . . . . . . . . . . . Robot Schematics Acquired 6 | . . . . . . . . . . . . . . . 3 . . . . . . . . . . . . . . . 2 . . 1 . Robots Built . | . . . . . . . . . . . . . . . . . . . . . . . . . . . . . . . . . . . . Authchips . | . . . . . . . . . . . . . . . . . . . . . . . . . . . . . . . . . . . . Time . | . . . . . . . . . . . . . . . . . . . . . . . . . . . . . . . . . . . . Total Robot Build Rating . | . . . . . . . . . . . . . . . . . . . . . . . . . . . . . . . . . . . . Part Schematics Acquired 27 | . 1 . 2 . . . 3 . 1 . . . . . 15 . . . . . . . . . . . . . . . 2 . . 3 . Parts Built 1 | . . . . . . . . . . . . . . . . . . . . . . . . . . . . . . 1 . . . . . Authchips . | . . . . . . . . . . . . . . . . . . . . . . . . . . . . . . . . . . . . Time 69 | . . . . . . . . . . . . . . . . . . . . . . . . . . . . . . 69 . . . . . Total Part Build Rating 9 | . . . . . . . . . . . . . . . . . . . . . . . . . . . . . . 9 . . . . . Part Studies Acquired 13 | . . . 2 . . . 2 . 2 . . . . . . . . . . . . . . . 1 . . . . . 4 2 . . . Parts Repaired 21 | . 1 . 1 . . . 4 . 12 3 . . . . . . . . . . . . . . . . . . . . . . . . . Time 1107 | . 26 . 32 . . . 198 . 731 120 . . . . . . . . . . . . . . . . . . . . . . . . . Parts Recycled . | . . . . . . . . . . . . . . . . . . . . . . . . . . . . . . . . . . . . Recycled Matter . | . . . . . . . . . . . . . . . . . . . . . . . . . . . . . . . . . . . . Retrieved Matter . | . . . . . . . . . . . . . . . . . . . . . . . . . . . . . . . . . . . . Retrieved Components . | . . . . . . . . . . . . . . . . . . . . . . . . . . . . . . . . . . . . Parts Scanalyzed 8 | . . . 2 . . . 3 . 2 . . . . . . . . . . . . . . . . . . . . . 1 . . . . Part Schematics Acquired 6 | . . . 2 . . . 3 . 1 . . . . . . . . . . . . . . . . . . . . . . . . . . Parts Damaged 2 | . . . . . . . 1 . 1 . . . . . . . . . . . . . . . . . . . . . . . . . . Bothacking | -11 -10 -10 -9 -9 -9 -8 -8 -8 -8 -8 -8 -7 -7 -7 -7 -7 -6 -6 -6 -6 -6 -6 -5 -5 -4 -4 -4 -4 -3 -3 -3 -2 -2 -2 -1 ------------ Run | Yrd Mat Min Mat Min Exi Min Mat Gar Mat Sto Gar Fac Low Low Zio Dee Pro Fac Ext Cet Arc Hub Fac Gar Fac Upp Upp War Pro Res Tes Res Qua Sec Acc Used RIF Installer . | . . . . . . . . . . . . . . . . . . . . . . . . . . . . . . . . . . . . Robots Hacked 12 | . . . . . 4 . . . . . . 1 . . 1 . . . . . 1 . . . . . . . . . . 5 . . . Non-combat 6 | . . . . . 3 . . . . . . 1 . . . . . . . . . . . . . . . . . . . 2 . . . Combat 6 | . . . . . 1 . . . . . . . . . 1 . . . . . 1 . . . . . . . . . . 3 . . . Robot Hacks Applied 12 | . . . . . 4 . . . . . . 1 . . 1 . . . . . 1 . . . . . . . . . . 5 . . . parse_system 10 | . . . . . 4 . . . . . . . . . 1 . . . . . 1 . . . . . . . . . . 4 . . . find_chute 1 | . . . . . . . . . . . . 1 . . . . . . . . . . . . . . . . . . . . . . . find_fabricator 1 | . . . . . . . . . . . . . . . . . . . . . . . . . . . . . . . . 1 . . . Relay Couplers Released 56 | . . . . . . . . 22 . . 17 . . . . . . . . . . 3 . 8 . . . . . . . 2 . 1 3 Machine Destruction 53 | . . . . . . . . 22 . . 17 . . . . . . . . . . . . 8 . . . . . . . 2 . 1 3 Programmers 3 | . . . . . . . . . . . . . . . . . . . . . . 3 . . . . . . . . . . . . . Fabnet Peak Effective % . | . . . . . . . . . . . . . . . . . . . . . . . . . . . . . . . . . . . . Robots Rewired 17 | . . . . . . . . . . . 2 . . . . . . . 13 . . . . . . . . 2 . . . . . . . Allies Hacked . | . . . . . . . . . . . . . . . . . . . . . . . . . . . . . . . . . . . . Hacks Repelled . | . . . . . . . . . . . . . . . . . . . . . . . . . . . . . . . . . . . . Allies | -11 -10 -10 -9 -9 -9 -8 -8 -8 -8 -8 -8 -7 -7 -7 -7 -7 -6 -6 -6 -6 -6 -6 -5 -5 -4 -4 -4 -4 -3 -3 -3 -2 -2 -2 -1 -------- Run | Yrd Mat Min Mat Min Exi Min Mat Gar Mat Sto Gar Fac Low Low Zio Dee Pro Fac Ext Cet Arc Hub Fac Gar Fac Upp Upp War Pro Res Tes Res Qua Sec Acc Total Allies 46 | . 1 3 . 2 . . . . . 11 2 . . . . . . . 19 5 . . . . . . . 2 . . 1 . . . . Largest Group 14 | . 1 3 3 3 . . . . . 10 10 2 . . . . . . 11 14 13 5 . . . . . 2 . . 1 . . . . Highest-Rated Group 873 | . 10 40 40 78 . . . . . 173 173 62 . . . . . . 468 873 777 346 . . . . . 124 . . 45 . . . . Highest-Rated Ally 159 | . 10 16 16 31 . . . . . 29 31 31 . . . . . . 159 159 152 96 . . . . . 68 . . 45 . . . . Initial Warlord ECA Mod 18 | . . . . . . . . . 10 10 10 18 18 18 18 18 17 17 15 15 15 15 13 12 15 15 15 15 14 14 14 13 13 13 12 Warlord Squad Rendezvous 4 | . . . . . . . . . . . . . . . . . . 2 . . . 1 1 . . . . . . . . . . . . Dakka 1 | . . . . . . . . . . . . . . . . . . 1 . . . . . . . . . . . . . . . . . Geek 1 | . . . . . . . . . . . . . . . . . . . . . . . 1 . . . . . . . . . . . . Chimera 2 | . . . . . . . . . . . . . . . . . . 1 . . . 1 . . . . . . . . . . . . . Total Orders 33 | . . . 2 2 . . . . . . 2 . . . . . . . 3 . 3 1 1 . 2 3 2 2 1 . . . . . 9 STAY 5 | . . . 1 1 . . . . . . 1 . . . . . . . 1 . 1 . . . . . . . . . . . . . . FOLLOW 7 | . . . 1 1 . . . . . . 1 . . . . . . . 1 . 2 . . . . . . . . . . . . . 1 EXPLORE 8 | . . . . . . . . . . . . . . . . . . . . . . 1 1 . 1 2 1 1 1 . . . . . . RETURN 13 | . . . . . . . . . . . . . . . . . . . 1 . . . . . 1 1 1 1 . . . . . . 8 Ally Attacks 551 | . . . 70 15 4 . . . . 24 80 14 . . . . . . 100 44 . 95 . . 2 . . 31 . . . . . . 72 Total Damage 19172 | . . . 725 144 . . . . . 432 1125 249 . . . . . . 1597 796 . 3453 . . . . . 1659 . . . . . . 8992 Kills 112 | . . . 11 4 . . . . . 4 14 2 . . . . . . 12 6 . 24 . . . . . 9 . . . . . . 26 Allies Corrupted 4 | . . . . . . . . . . . . . . . . . . . . . . 2 . . . . . . . . . . . . 2 Allies Melted 1 | . . . . . . . . . . . . . . . . . . . . . . . . . . . . . . . . 1 . . . Intel | -11 -10 -10 -9 -9 -9 -8 -8 -8 -8 -8 -8 -7 -7 -7 -7 -7 -6 -6 -6 -6 -6 -6 -5 -5 -4 -4 -4 -4 -3 -3 -3 -2 -2 -2 -1 ------- Run | Yrd Mat Min Mat Min Exi Min Mat Gar Mat Sto Gar Fac Low Low Zio Dee Pro Fac Ext Cet Arc Hub Fac Gar Fac Upp Upp War Pro Res Tes Res Qua Sec Acc Active Infowar (turns) 24543 | 38 373 . 804 . 1 . . 41 . . 63 269 1179 1851 1405 913 1047 287 1296 501 272 807 431 154 1418 1016 503 1275 1276 1279 659 1520 826 2672 367 Optics 5841 | . . . . . . . . . . . . . . . . . . 144 1296 501 272 807 400 . . . . . . . 421 321 . 1679 . Sensors 12058 | . . . . . 1 . . . . . . . 1134 1851 1405 913 1001 213 258 . . . . . . 414 497 941 374 . . 1158 682 1047 169 Terrain 605 | . . . . . . . . . . . . . . . . . . . . . . 380 . . 27 . . . . . . . . . 198 Structural 321 | . . . 321 . . . . . . . . . . . . . . . . . . . . . . . . . . . . . . . . Traps 483 | . . . 483 . . . . . . . . . . . . . . . . . . . . . . . . . . . . . . . . Seismic 411 | 38 373 . . . . . . . . . . . . . . . . . . . . . . . . . . . . . . . . . . Cloaking 14 | . . . . . . . . . . . . . . . . . . . . . . . . . . . . 14 . . . . . . . Jamming 11265 | . . . . . . . . 41 . . 63 269 45 . . . 47 30 1027 . . 451 425 154 1393 602 6 439 902 1279 448 1243 559 1777 65 Robot Analysis Total 7 | . 2 . . . . . 3 . 1 1 . . . . . . . . . . . . . . . . . . . . . . . . . Derelict Logs Recovered 10 | . . 2 . . . . . . . . . . . 1 3 . 2 . . . . . . . . 2 . . . . . . . . . Drone Launches 35 | . . . . . 4 . . . . . . . . . . . . . 7 . . 1 1 . 4 2 1 1 1 . . . . . 13 Drone Recoveries 22 | . . . . . . . . . . . . . . . . . . . 3 . . 1 1 . 2 2 1 1 . . . . . . 11 Exploration | -11 -10 -10 -9 -9 -9 -8 -8 -8 -8 -8 -8 -7 -7 -7 -7 -7 -6 -6 -6 -6 -6 -6 -5 -5 -4 -4 -4 -4 -3 -3 -3 -2 -2 -2 -1 ------------- Run | Yrd Mat Min Mat Min Exi Min Mat Gar Mat Sto Gar Fac Low Low Zio Dee Pro Fac Ext Cet Arc Hub Fac Gar Fac Upp Upp War Pro Res Tes Res Qua Sec Acc Turns Passed 54398 | 155 1217 688 2279 1525 2715 868 2385 1605 4315 1498 1695 583 1426 2111 2347 4685 1928 287 1296 501 272 807 614 652 1844 1402 880 1321 1280 1328 735 1520 888 2816 1930 Spaces Moved 34628 | 69 648 418 1003 604 1324 408 1283 849 1853 722 921 312 916 1263 1214 3540 795 324 897 245 77 364 333 367 964 660 442 779 841 1185 934 2747 1062 3003 1262 Core 132 | 9 . . . . . . . . . . . . . . . . . . . . . . . . . . . . . . . . . 3 120 Treads 3687 | 60 491 418 900 600 1126 75 . . . . . . . . . . . . . . . . . . . . . . . . . . . 12 5 Legs 6075 | . . . . . . . . . . . . . . . . . . . . . . 68 333 367 964 660 442 779 841 796 . . . . 825 Wheels 12972 | . 157 . 103 4 198 333 1283 849 1853 722 921 312 916 1263 1214 2094 690 . . . . . . . . . . . . . . . . . 60 Hover 11689 | . . . . . . . . . . . . . . . . 1446 105 324 897 245 77 296 . . . . . . . 389 934 2747 1062 2988 179 Flight 73 | . . . . . . . . . . . . . . . . . . . . . . . . . . . . . . . . . . . 73 Fastest Speed 27 | 50 95 160 160 160 160 145 115 145 140 145 145 140 140 125 95 42 58 58 58 63 131 100 100 120 120 130 132 120 120 43 27 43 34 34 35 Average Speed 117 | 145 144 160 178 224 167 173 123 145 161 155 159 140 140 154 170 108 169 58 69 129 131 128 110 122 128 140 134 133 120 92 45 44 47 54 97 Slowest Speed 1750 | 160 160 160 240 240 240 240 145 145 240 160 160 140 140 185 185 270 235 58 161 214 131 224 120 124 270 186 186 182 120 125 108 120 127 1750 330 Overloaded Moves 150 | . . . . . . . . . . . . . . . . . . . . . . . . . . . . . . . 28 . 2 120 . Propulsion Burnouts . | . . . . . . . . . . . . . . . . . . . . . . . . . . . . . . . . . . . . Robots Hopped 3 | . . . . . . . . . . . . . . . . . . . . . . 1 . . . . . . . . . . . . 2 Potential Cave-ins 3 | . . . . . . . . . . . . . . . . . . . . . . . . . . . . . 3 . . . . . . Cave-ins Triggered 1 | . . . . . . . . . . . . . . . . . . . . . . . . . . . . . 1 . . . . . . Teleports 48 | . . . . . . . . . . . . . . . . . . . . . . . . . . . . . . . . . . 1 47 Time Travels 1 | . . . . . 1 . . . . . . . . . . . . . . . . . . . . . . . . . . . . . . Exploration Rate (%) 71 | 4 93 88 76 96 91 99 90 89 98 94 88 15 93 97 87 93 72 7 89 73 59 62 11 41 36 91 73 95 98 29 92 61 81 89 27 Regions Visited 35 Branch Regions 21 Pre-discovered Areas 11 | . . . . . 1 . 1 . . 3 . . 1 1 3 . . . . . . . . . . 1 . . . . . . . . . Known Exits Taken 16 | . . 1 1 . . . 1 . 1 1 . 1 1 . . . 1 1 . . . . 1 . 1 . . . 1 1 . 1 1 1 . Unknown Exits Taken 16 | 1 1 . . 1 1 1 . . . . . . . 1 1 1 . . 1 1 1 1 . . . 1 1 1 . . 1 . . . . Scrap Searched 31 | . . 3 . 2 . 2 . . . . . . 3 4 3 . 2 . . . . . . . . 5 2 . 5 . . . . . . Spaces Dug 172 | . . . . . 1 . . 6 1 . . 3 . 8 2 7 7 5 1 . 1 11 5 7 12 2 . 1 18 4 17 4 6 24 19 Terrain Destroyed 2098 | . . 14 61 . 22 49 . 89 128 46 107 3 27 85 6 11 26 23 31 1 5 502 10 17 197 11 4 32 75 32 68 4 6 208 198 Melee 76 | . . . . . 1 . . 6 . . . 3 . . 1 4 . 1 . . . . . . . . . . . . 17 4 6 23 10 Projectile 409 | . . . . . 1 . . . 39 22 . . . 21 5 3 26 7 3 1 4 40 10 17 53 11 4 32 75 16 . . . 1 18 AOE 1605 | . . 14 61 . 20 49 . 83 89 24 107 . 27 64 . . . 15 28 . . 460 . . 144 . . . . 16 51 . . 184 169 Terrain Rammed . | . . . . . . . . . . . . . . . . . . . . . . . . . . . . . . . . . . . . Walls Destroyed . | . . . . . . . . . . . . . . . . . . . . . . . . . . . . . . . . . . . . Machines Disabled . | . . . . . . . . . . . . . . . . . . . . . . . . . . . . . . . . . . . . Actions | -11 -10 -10 -9 -9 -9 -8 -8 -8 -8 -8 -8 -7 -7 -7 -7 -7 -6 -6 -6 -6 -6 -6 -5 -5 -4 -4 -4 -4 -3 -3 -3 -2 -2 -2 -1 --------- Run | Yrd Mat Min Mat Min Exi Min Mat Gar Mat Sto Gar Fac Low Low Zio Dee Pro Fac Ext Cet Arc Hub Fac Gar Fac Upp Upp War Pro Res Tes Res Qua Sec Acc Total 45379 | 95 796 433 1402 728 1703 484 1851 1097 3024 980 1065 415 1022 1361 1470 4256 1290 403 1512 415 232 570 556 509 1332 1136 727 1008 1057 1363 1161 2996 1351 3769 1810 Wait 5599 | 2 56 5 174 66 183 8 325 94 857 148 24 57 60 15 152 350 279 47 369 98 116 60 174 78 153 392 236 44 120 63 106 88 135 325 140 Move 34589 | 68 647 417 1002 603 1323 407 1283 848 1852 721 920 311 915 1262 1213 3539 794 323 896 244 76 362 333 366 963 659 441 778 839 1184 933 2746 1061 3002 1258 Hop 3 | . . . . . . . . . . . . . . . . . . . . . . 1 . . . . . . . . . . . . 2 Pick Up 467 | 4 10 3 25 4 32 2 19 7 23 8 4 4 2 11 45 61 15 3 11 4 1 4 6 3 14 20 1 15 8 5 5 10 8 34 36 Fast Attach 399 | 7 2 . 9 4 5 3 14 2 17 4 1 1 1 3 3 38 10 2 6 13 2 15 3 2 11 7 2 10 2 26 15 38 20 45 56 Attach 222 | . 2 . 3 3 12 1 3 4 9 9 2 2 . 2 6 23 12 3 11 1 . 4 5 1 7 1 . 6 2 7 5 5 7 35 29 Detach 75 | . . . . 3 5 . . . 4 3 2 . . 1 . 5 4 2 3 . . 4 3 . 5 . . . . 5 4 3 2 9 8 Swap 400 | . 3 5 27 7 10 12 22 11 32 . 15 7 20 14 13 18 12 4 5 7 2 13 6 3 27 7 7 16 6 4 7 8 6 31 13 Drop 736 | . 2 1 35 13 34 7 34 7 40 7 5 3 3 7 15 81 33 4 15 16 3 16 10 8 31 18 9 34 9 30 24 48 26 65 43 Fire 1878 | 14 74 2 53 25 89 44 148 72 158 79 41 22 19 45 18 63 130 10 37 32 31 89 16 48 118 32 31 50 66 39 2 8 15 12 146 Melee 578 | . . . . . 7 . . 20 1 1 15 8 2 1 5 68 . 5 14 . 1 . . . 2 . . . . . 60 41 48 211 68 Ram . | . . . . . . . . . . . . . . . . . . . . . . . . . . . . . . . . . . . . Kick 4 | . . . . . . . . . . . . . . . . . . . . . . 2 . . 1 . . . . . . . . . 1 Crush 5 | . . . . . . . . . 5 . . . . . . . . . . . . . . . . . . . . . . . . . . Escape Stasis 166 | . . . . . . . . 32 . . 32 . . . . . . . 74 . . . . . . . . . 1 . . . 23 . 4 Rewire 133 | . . . . . . . . . . . 4 . . . . . 1 . 71 . . . . . . . . 55 . . . 1 . . 1 Trap 120 | . . . 74 . 3 . 3 . 26 . . . . . . 10 . . . . . . . . . . . . 4 . . . . . . Miscellaneous 5 | . . . . . . . . . . . . . . . . . . . . . . . . . . . . . . . . . . . 5 Route ------- -11/Scrapyard -10/Materials (discovered 5 exits: *Mat x3 / [*Min x2]) -10/Mines (discovered 2 exits: *Mat x2) -9/Materials (discovered 2 exits: *Min x2) -9/Mines (discovered 4 exits: *Mat x2 / *Exi / *Zio) -9/Exiles (discovered 2 exits: [*Min x2]) -8/Mines (discovered 2 exits: *Mat x2) -8/Materials (discovered 5 exits: *Fac x3 / *Sto / Gar) -8/Garrison (discovered 3 exits: *Mat x3) -8/Materials (discovered 5 exits: *Fac x3 / *Sto x2) -8/Storage (discovered 3 exits: *Fac / Rec / Gar) -8/Garrison (discovered 3 exits: *Fac x3) -7/Factory (discovered 5 exits: Fac x3 / *Low x2) -7/Lower Caves (discovered 2 exits: *Low / *Zio) -7/Lower Caves (discovered 2 exits: *Fac / *Zio) -7/Zion (discovered 2 exits: [*Dee] / [*Pro]) -7/Deep Caves -6/Proximity Caves -6/Factory (discovered 3 exits: Low / *Ext x2) -6/Extension (discovered 2 exits: *Fac / *Cet) -6/Cetus (discovered 2 exits: *Fac / [*Arc]) -6/Archives -6/Hub_04(d) (discovered 4 exits: *Fac x4) -5/Factory (discovered 2 exits: *Fac / Gar) -5/Garrison -4/Factory (discovered 6 exits: *Res x4 / *Upp / Arm) -4/Upper Caves -4/Upper Caves -4/Warlord -3/Proximity Caves -3/Research (discovered 3 exits: *Res / *Tes x2) -3/Testing -2/Research (discovered 3 exits: *Acc x2 / *Qua) -2/Quarantine (discovered 3 exits: *Acc / *Sec / *Frg) -2/Section 7 -1/Access (discovered 1 exit: [*Sur]) History --------- Turn | Location | Event 4 | -11/Scrapyard | Discovered new exit (range 15) 156 | -11/Scrapyard | Entered Materials 174 | -10/Materials | Discovered new exit (range 15) 309 | -10/Materials | Build established: Mutant 400 | -10/Materials | Discovered new exit (range 13) 686 | -10/Materials | Discovered new exit (range 15) 785 | -10/Materials | Central database locked down 878 | -10/Materials | Discovered new exit (range 8) 1055 | -10/Materials | Repaired Lgt. Treads 1220 | -10/Materials | Discovered new exit (range 11) 1373 | -10/Materials | Entered Mines 1459 | -10/Mines | Assisted by bots powering up and referring to "LRC-V3" 1529 | -10/Mines | Received a Rocket Launcher from a helpful Derelict 1627 | -10/Mines | Identified exit to Materials 1659 | -10/Mines | Learned location of 1 exit from Materials 1672 | -10/Mines | Found a Scrap Suit stashed away for nefarious purposes 1675 | -10/Mines | Found Scrap Suit 1768 | -10/Mines | Discovered exit to Materials (range 8) 2061 | -10/Mines | Entered Materials 2061 | -9/Materials | Accompanied by 3 allies 2061 | -9/Materials | Evolved 2 slots: Propulsion x1, Utility x1 2062 | -9/Materials | Identified exit to Mines 2836 | -9/Materials | Repaired Trap Extractor 3268 | -9/Materials | Discovered exit to Mines (range 9) 3384 | -9/Materials | Central database locked down 4340 | -9/Materials | Entered Mines 4340 | -9/Mines | Accompanied by 1 ally 4419 | -9/Mines | A Derelict revealed a hidden shortcut to a safe place 4688 | -9/Mines | Escorted by a lone wolf Derelict 4872 | -9/Mines | Met a Derelict who couldn't figure out how to use a Trap Extractor 5122 | -9/Mines | Received a Mining Laser from a helpful Derelict 5335 | -9/Mines | Found a damaged Exp. Sensor Array with a note attached 5335 | -9/Mines | Discovered new exit (range 12) 5340 | -9/Mines | Found Prototype Device 5397 | -9/Mines | Found the Drone Emporium 5411 | -9/Mines | Found Prototype Device 5423 | -9/Mines | Identified Bomb Drone Bay 5544 | -9/Mines | Build established: Scavenger-Mutant 5554 | -9/Mines | Discovered new exit (range 11) 5856 | -9/Mines | Deemed a non-threat by the Exiles lab entrance 5856 | -9/Mines | Discovered new exit (range 5) 5865 | -9/Mines | Entered Exiles 5865 | -9/Exiles | Accompanied by 1 ally 5901 | -9/Exiles | Discovered new exit (range 15) 5925 | -9/Exiles | Met 8R-AWN 5948 | -9/Exiles | Met EX-HEX 6009 | -9/Exiles | Met EX-DEC 6054 | -9/Exiles | Learned location of Zion (-7) 6092 | -9/Exiles | Met EX-BIN 6195 | -9/Exiles | Aligned with FarCom system 6196 | -9/Exiles | Given EX-Vault access code 6235 | -9/Exiles | Opened EX-Vault 6245 | -9/Exiles | Found Chronowheel 6276 | -9/Exiles | Warned to stay clear of 0b10 Research branches 6383 | -9/Exiles | Identified Exp. Sensor Array 6547 | -9/Exiles | Warned about trapping Exiles lab 6680 | -9/Exiles | Build established: Mutant 7098 | -9/Exiles | Build established: Trapper-Mutant 7483 | -9/Exiles | Attacked by the Exiles 7547 | -9/Exiles | Build established: Mutant 7583 | -9/Exiles | Activated Chronowheel 7583 | -9/Exiles | Spacetime reconverged on an earlier point 7689 | -9/Exiles | Destroyed 8R-AWN 7696 | -9/Exiles | Found 8R-AWN's Boregun 7698 | -9/Exiles | Found AS-neutralizer No. 17b 7851 | -9/Exiles | Lost 4 allies 7956 | -9/Exiles | Destroyed EX-HEX 8049 | -9/Exiles | Destroyed EX-DEC 8176 | -9/Exiles | Destroyed EX-BIN 8308 | -9/Exiles | Found Exp. Core Analyzer 8329 | -9/Exiles | Found System Purifier 8563 | -9/Exiles | Discovered new exit (range 12) 8577 | -9/Exiles | Build established: Scavenger-Mutant 8580 | -9/Exiles | Entered Mines 8929 | -8/Mines | Core integrity fell below 50% 9087 | -8/Mines | Discovered new exit (range 15) 9115 | -8/Mines | Build established: Mutant 9435 | -8/Mines | Discovered new exit (range 10) 9448 | -8/Mines | Entered Materials 9448 | -8/Materials | Evolved 2 slots: Propulsion x1, Utility x1 10202 | -8/Materials | Discovered new exit (range 15) 10326 | -8/Materials | Build established: Hacker-Mutant 10645 | -8/Materials | Discovered new exit (range 15) 10796 | -8/Materials | Learned location of 2 exits from Factory 10849 | -8/Materials | Learned 4 Factory zone layouts 10891 | -8/Materials | Learned Factory terminal intel 10924 | -8/Materials | Learned 12 Factory zone layouts 10949 | -8/Materials | Identified exit to Factory 10964 | -8/Materials | Learned Storage stockpile data 10987 | -8/Materials | Learned 12 Factory zone layouts 11065 | -8/Materials | Learned Factory terminal intel 11451 | -8/Materials | Repaired Broken Exp. Sensor Array 11569 | -8/Materials | Repaired Arm. Treads 11602 | -8/Materials | Repaired Arm. Wheel 11662 | -8/Materials | Repaired Enh. Autogun 11833 | -8/Materials | Identified exit to Garrison 11833 | -8/Materials | Entered Garrison 12079 | -8/Garrison | Phase Generator disabled 12687 | -8/Garrison | Triggered checkpoint 12701 | -8/Garrison | Garrison Relay disabled 12728 | -8/Garrison | Discovered new exit (range 14) 12807 | -8/Garrison | Triggered checkpoint 12966 | -8/Garrison | Build established: Scavenger-Mutant 13004 | -8/Garrison | Garrison Relay disabled 13040 | -8/Garrison | Discovered new exit (range 14) 13235 | -8/Garrison | Discovered new exit (range 10) 13241 | -8/Garrison | Garrison Relay disabled 13320 | -8/Garrison | Triggered checkpoint 13402 | -8/Garrison | Garrison Relay disabled 13438 | -8/Garrison | Entered Materials 13440 | -8/Materials | Discovered new exit (range 14) 13504 | -8/Materials | Discovered new exit (range 6) 13559 | -8/Materials | Identified exit to Storage 13645 | -8/Materials | Repaired Enh. Autogun 13706 | -8/Materials | Repaired Enh. Autogun 14040 | -8/Materials | Watched by a mysterious "MATRIX" hacker 14051 | -8/Materials | Build established: Mutant 14378 | -8/Materials | Discovered exit to Factory (range 11) 14873 | -8/Materials | Learned location of 1 exit from Storage 14900 | -8/Materials | Build established: Scavenger-Mutant 14916 | -8/Materials | Learned Storage trap positions 14948 | -8/Materials | Learned 4 Recycling zone layouts 14972 | -8/Materials | Learned Storage trap positions 14986 | -8/Materials | Learned 4 Recycling zone layouts 14992 | -8/Materials | Learned Storage security intel 14997 | -8/Materials | Learned Factory recycling unit intel 15013 | -8/Materials | Learned Storage trap positions 15039 | -8/Materials | Learned 12 Factory zone layouts 15074 | -8/Materials | Learned location of 1 exit from Lower Caves 15278 | -8/Materials | Discovered exit to Factory (range 10) 15817 | -8/Materials | Discovered exit to Factory (range 16) 16370 | -8/Materials | Repaired Broken System Purifier 16430 | -8/Materials | Repaired Hrd. Heavy Armor Plating 16469 | -8/Materials | Repaired Hvy. Assault Cannon 16514 | -8/Materials | Repaired Rnf. Deuterium Engine 16575 | -8/Materials | Repaired Enh. Autogun 16615 | -8/Materials | Repaired Arm. Treads 16660 | -8/Materials | Repaired Hvy. Missile Launcher 16705 | -8/Materials | Repaired Arm. Huge Wheel 16802 | -8/Materials | Repaired Broken Cmb. Antigrav System 16871 | -8/Materials | Repaired Adv. Weapon Cycler 17143 | -8/Materials | Core integrity fell below 50% 17753 | -8/Materials | Entered Storage 17755 | -8/Storage | Loaded intel: 21 trap records 17805 | -8/Storage | Identified exit to Garrison 17850 | -8/Storage | Garrison activated, responded to threat 17925 | -8/Storage | Repaired Hrd. Medium Armor Plating 18065 | -8/Storage | Repaired Arm. Treads 18336 | -8/Storage | Learned Factory security intel 18373 | -8/Storage | Identified exit to Recycling 18377 | -8/Storage | Garrison activated, responded to threat 18399 | -8/Storage | Learned location of Extension (-6) 18426 | -8/Storage | Learned 4 Lower Caves zone layouts 18443 | -8/Storage | Learned location of Recycling (-8) 19027 | -8/Storage | Assisted by bots powering up and referring to "LRC-V3" 19188 | -8/Storage | Repaired Med. Reflective Plating 19251 | -8/Storage | Entered Garrison 19251 | -8/Garrison | Accompanied by 10 allies 19315 | -8/Garrison | Triggered checkpoint 19320 | -8/Garrison | Build established: Commander-Mutant 19338 | -8/Garrison | Garrison Relay disabled 19469 | -8/Garrison | Triggered checkpoint 19489 | -8/Garrison | Triggered checkpoint 19523 | -8/Garrison | Lost 4 allies 19532 | -8/Garrison | P-60 Hacker assimilated allied Trooper 3g 19585 | -8/Garrison | Discovered exit to Factory (range 10) 19631 | -8/Garrison | Triggered checkpoint 19712 | -8/Garrison | Garrison Relay disabled 19795 | -8/Garrison | Phase Generator disabled 19814 | -8/Garrison | Build established: Scavenger-Mutant 20037 | -8/Garrison | Discovered exit to Factory (range 10) 20053 | -8/Garrison | Triggered checkpoint 20057 | -8/Garrison | Core integrity fell below 20% 20079 | -8/Garrison | Garrison Relay disabled 20321 | -8/Garrison | Garrison Relay disabled 20443 | -8/Garrison | Discovered exit to Factory (range 14) 20946 | -8/Garrison | Entered Factory 20946 | -7/Factory | Accompanied by 2 allies 20946 | -7/Factory | Evolved 2 slots: Propulsion x1, Utility x1 20947 | -7/Factory | Identified exit to Factory 20947 | -7/Factory | Identified exit to Lower Caves 20950 | -7/Factory | Loaded intel: 26 terminal locations 20951 | -7/Factory | Loaded intel: 6 recycling unit locations 21232 | -7/Factory | Garrison activated, responded to threat 21346 | -7/Factory | First assault squad dispatched 21529 | -7/Factory | Entered Lower Caves 21530 | -7/Lower Caves | A Derelict revealed a hidden shortcut to a safe place 21530 | -7/Lower Caves | Identified exit to Lower Caves 21555 | -7/Lower Caves | Met a Warlord Commander 21556 | -7/Lower Caves | Learned location of Warlord (-4) 21557 | -7/Lower Caves | Warlord Commander delivered Encrypted Comm Array 21563 | -7/Lower Caves | Found Encrypted Comm Array 21784 | -7/Lower Caves | Attracted the attention of an 0b10 checkpoint 22271 | -7/Lower Caves | Build established: Trapper-Mutant 22955 | -7/Lower Caves | Entered another Lower Caves area 22957 | -7/Lower Caves | Attracted the attention of an 0b10 checkpoint 23026 | -7/Lower Caves | Discovered exit to Factory (range 10) 23267 | -7/Lower Caves | Found Alien Artifact 23770 | -7/Lower Caves | Discovered new exit (range 9) 24109 | -7/Lower Caves | Build established: Hauler-Mutant 25066 | -7/Lower Caves | Entered Zion 25176 | -7/Zion | Learned Factory stockpile data 25221 | -7/Zion | Found GAL Module 25307 | -7/Zion | Discovered new exit (range 10) 25321 | -7/Zion | Given the Hacking Drone Bay 25321 | -7/Zion | Found Prototype Device 25520 | -7/Zion | Learned location of 1 exit from Factory 25663 | -7/Zion | Learned location of Quarantine (-2) 25687 | -7/Zion | Learned location of Armory (-4) 25845 | -7/Zion | Met Imprinter 26077 | -7/Zion | Found Prototype Device 26078 | -7/Zion | Identified Hacking Drone Bay 26079 | -7/Zion | Identified Mobile Refinery Mk. CCLXVII 26454 | -7/Zion | Found Prototype Launcher 26454 | -7/Zion | Identified Gui. Missile Launcher 26457 | -7/Zion | Found Prototype Launcher 26457 | -7/Zion | Identified Rocket Array 26869 | -7/Zion | Identified Dimensional Node Initializer 26869 | -7/Zion | Initialized slip node 26908 | -7/Zion | Discovered new exit (range 12) 26925 | -7/Zion | Saw the warning signs outside the Deep Caves entrance 27328 | -7/Zion | Attacked by Zionites 27413 | -7/Zion | Entered Deep Caves 28204 | -7/Deep Caves | Attacked by Z-Imprinter 28255 | -7/Deep Caves | Found Prototype Protection 28255 | -7/Deep Caves | Identified Zio. Weapon Casing 28314 | -7/Deep Caves | Found Zio. Weapon Casing 28373 | -7/Deep Caves | Build established: Scavenger-Mutant 28472 | -7/Deep Caves | Destroyed Z-Imprinter 28542 | -7/Deep Caves | Found Zio. Weapon Casing 28809 | -7/Deep Caves | Z-Facility disabled 28925 | -7/Deep Caves | Found Prototype Protection 28925 | -7/Deep Caves | Identified Zio. Heavy Carapace 29690 | -7/Deep Caves | Discovered new exit (range 6) 30048 | -7/Deep Caves | Found Zio. Heavy Carapace 30288 | -7/Deep Caves | Found Surveybot 24 Chip 30290 | -7/Deep Caves | Found Surveybot 24 Scanner 30341 | -7/Deep Caves | Spotted Golem 30464 | -7/Deep Caves | Found GOLEM Unit 30754 | -7/Deep Caves | Triggered Deep Caves wall 30759 | -7/Deep Caves | Spotted Assembler 30773 | -7/Deep Caves | Spotted Assembler 30773 | -7/Deep Caves | Spotted Golem 30779 | -7/Deep Caves | Exposed GOLEM chamber 30832 | -7/Deep Caves | Destroyed Golem 30835 | -7/Deep Caves | Found GOLEM Unit 30848 | -7/Deep Caves | Destroyed Assembler 30876 | -7/Deep Caves | Destroyed Assembler 30965 | -7/Deep Caves | Found Supersonic Drone Bay 31542 | -7/Deep Caves | Build established: Hauler-Mutant 32098 | -7/Deep Caves | Entered Proximity Caves 33333 | -6/Proximity Caves | Lost 4 allies 33530 | -6/Proximity Caves | Core integrity fell below 50% 33863 | -6/Proximity Caves | Lost 5 allies 34026 | -6/Proximity Caves | Entered Factory 34026 | -6/Factory | Evolved 2 slots: Power x1, Utility x1 34027 | -6/Factory | Identified exit to Extension 34028 | -6/Factory | Identified exit to Lower Caves 34030 | -6/Factory | Loaded intel: 28 terminal locations 34116 | -6/Factory | Joined by Warlord Dakka squad 34116 | -6/Factory | Spotted B-75 Beast 34150 | -6/Factory | Joined by Warlord Chimera squad 34190 | -6/Factory | Build established: Scavenger-Mutant 34313 | -6/Factory | Entered Extension 34924 | -6/Extension | Spotted B-75 Beast 34936 | -6/Extension | Spotted B-75 Beast 34944 | -6/Extension | Allies destroyed B-75 Beast 34960 | -6/Extension | Destroyed B-75 Beast 34989 | -6/Extension | Lost 7 allies 35094 | -6/Extension | Rescued a captive Derelict 35135 | -6/Extension | Allied Derelicts emerged from ambush trap array 35145 | -6/Extension | Rescued a captive Derelict 35145 | -6/Extension | Rescued a captive Derelict 35214 | -6/Extension | Rescued a captive Derelict 35228 | -6/Extension | Rescued a captive Derelict 35229 | -6/Extension | Rescued a captive Derelict 35371 | -6/Extension | Rescued A7 35529 | -6/Extension | Discovered new exit (range 10) 35530 | -6/Extension | Discovered new exit (range 6) 35609 | -6/Extension | Entered Cetus 35609 | -6/Cetus | Accompanied by 10 allies (A7) 35614 | -6/Cetus | Acquired a Cetus Manufacturing Module code from A7 35629 | -6/Cetus | Spotted Cetus Guard 35629 | -6/Cetus | Spotted Cetus Guard 35630 | -6/Cetus | Spotted Cetus Guard 35636 | -6/Cetus | Spotted Cetus Guard 35638 | -6/Cetus | Allies destroyed Cetus Guard 35645 | -6/Cetus | Destroyed Cetus Guard 35647 | -6/Cetus | Destroyed Cetus Guard 35655 | -6/Cetus | Allies destroyed Cetus Guard 35726 | -6/Cetus | Started Cetus Manufacturing Module 35737 | -6/Cetus | Escorted A7 to Cetus Mainframe 35751 | -6/Cetus | Manufactured an Enhanced Grunt 35776 | -6/Cetus | Manufactured an Enhanced Grunt 35801 | -6/Cetus | Manufactured an Enhanced Grunt 35826 | -6/Cetus | Manufactured an Enhanced Grunt 35830 | -6/Cetus | Discovered new exit (range 21) 35851 | -6/Cetus | Manufactured an Enhanced Grunt 35923 | -6/Cetus | Spotted Cetus Guard 35925 | -6/Cetus | Spotted Cetus Guard 35933 | -6/Cetus | Spotted Cetus Guard 35933 | -6/Cetus | Spotted Cetus Guard 35937 | -6/Cetus | Discovered new exit (range 22) 35942 | -6/Cetus | Allies destroyed Cetus Guard 35944 | -6/Cetus | Allies destroyed Cetus Guard 35954 | -6/Cetus | Allies destroyed Cetus Guard 35958 | -6/Cetus | Allies destroyed Cetus Guard 35972 | -6/Cetus | Met Revision 17 36032 | -6/Cetus | Found Prototype Device 36032 | -6/Cetus | Identified Exp. Thermal Shield 36110 | -6/Cetus | Entered Archives 36110 | -6/Archives | Accompanied by 13 allies (A7) 36115 | -6/Archives | Received a hacking code to weaken MAIN.C 36342 | -6/Archives | Met Zhirov 36348 | -6/Archives | Reinforcements dispatched to Archives 36354 | -6/Archives | Discovered new exit (range 13) 36382 | -6/Archives | Entered Hub_04(d) 36382 | -6/Hub_04(d) | Accompanied by 5 allies 36459 | -6/Hub_04(d) | Discovered new exit (range 24) 36459 | -6/Hub_04(d) | Discovered new exit (range 23) 36576 | -6/Hub_04(d) | Discovered new exit (range 14) 36671 | -6/Hub_04(d) | Garrison activated, responded to threat 36774 | -6/Hub_04(d) | Discovered new exit (range 22) 36828 | -6/Hub_04(d) | Network Hub disabled 36843 | -6/Hub_04(d) | Network Hub disabled 36843 | -6/Hub_04(d) | Network Hub disabled 36878 | -6/Hub_04(d) | Joined by Warlord Chimera squad 36881 | -6/Hub_04(d) | Spotted Lightning 36881 | -6/Hub_04(d) | Spotted Lightning 36883 | -6/Hub_04(d) | Spotted Lightning 36912 | -6/Hub_04(d) | Spotted Lightning 36914 | -6/Hub_04(d) | Spotted Lightning 36916 | -6/Hub_04(d) | Spotted Lightning 36930 | -6/Hub_04(d) | Destroyed Lightning 36938 | -6/Hub_04(d) | Found Prototype Device 36938 | -6/Hub_04(d) | Identified Exp. Phase Shifter 36947 | -6/Hub_04(d) | System corruption reached 10% 36948 | -6/Hub_04(d) | Found Prototype Device 36948 | -6/Hub_04(d) | Identified Exp. EM Shield 36963 | -6/Hub_04(d) | Lost 4 parts (1p2n1u) 36965 | -6/Hub_04(d) | Destroyed Lightning 36971 | -6/Hub_04(d) | Destroyed Lightning 36987 | -6/Hub_04(d) | High security lockdown imminent 36987 | -6/Hub_04(d) | Destroyed Lightning 37031 | -6/Hub_04(d) | Destroyed Lightning 37059 | -6/Hub_04(d) | Core integrity fell below 50% 37061 | -6/Hub_04(d) | Destroyed Lightning 37067 | -6/Hub_04(d) | High security lockdown engaged 37080 | -6/Hub_04(d) | Found Exp. EM Shield 37101 | -6/Hub_04(d) | Found Prototype Energy Cannon 37107 | -6/Hub_04(d) | Found Exp. Targeting Computer 37112 | -6/Hub_04(d) | Found Exp. EM Shield 37131 | -6/Hub_04(d) | Found Exp. Targeting Computer 37189 | -6/Hub_04(d) | Entered Factory 37189 | -5/Factory | Evolved 2 slots: Utility x1, Weapon x1 37249 | -5/Factory | Joined by Warlord Geek squad 37388 | -5/Factory | Discovered new exit (range 5) 37409 | -5/Factory | Identified EMDS 37789 | -5/Factory | First assault squad dispatched 37803 | -5/Factory | Identified exit to Garrison 37803 | -5/Factory | Entered Garrison 37840 | -5/Garrison | Spotted B-75 Beast 37879 | -5/Garrison | Build established: Scavenger-Golem 37881 | -5/Garrison | Garrison Relay disabled 38183 | -5/Garrison | Triggered checkpoint 38255 | -5/Garrison | Triggered checkpoint 38269 | -5/Garrison | Discovered new exit (range 10) 38315 | -5/Garrison | Garrison Relay disabled 38455 | -5/Garrison | Entered Factory 38455 | -4/Factory | Evolved 2 slots: Utility x2 38626 | -4/Factory | Found Quantum Capacitor 38662 | -4/Factory | Identified exit to Research 38662 | -4/Factory | Targeted by mysterious "MATRIX" hacker 38705 | -4/Factory | First assault squad dispatched 39069 | -4/Factory | Destroyed 8 combat bots 39909 | -4/Factory | Spotted B-86 Titan 39931 | -4/Factory | Destroyed B-86 Titan 39974 | -4/Factory | Identified exit to Upper Caves 39974 | -4/Factory | Identified exit to Armory 39985 | -4/Factory | Garrison activated, responded to threat 40001 | -4/Factory | Found Hvy. Reflective Plating 40023 | -4/Factory | Lost 5 parts (1n3u1w) 40122 | -4/Factory | Garrison activated, responded to threat 40299 | -4/Factory | Entered Upper Caves 40300 | -4/Upper Caves | Encountered a Warlord checkpoint 41256 | -4/Upper Caves | Discovered new exit (range 11) 41460 | -4/Upper Caves | Learned Research emergency access door positions 41701 | -4/Upper Caves | Entered another Upper Caves area 42019 | -4/Upper Caves | Encountered a Warlord checkpoint 42257 | -4/Upper Caves | Discovered new exit (range 10) 42581 | -4/Upper Caves | Entered Warlord 42610 | -4/Warlord | Discovered new exit (range 20) 42879 | -4/Warlord | Found Prototype Reactor 42879 | -4/Warlord | Identified Vortex Chain Reactor 42886 | -4/Warlord | Found Prototype Device 42886 | -4/Warlord | Identified Exp. Focal Shield 42898 | -4/Warlord | Found Prototype Device 42898 | -4/Warlord | Identified Exp. Cloaking Device 42908 | -4/Warlord | Found Prototype Hackware 42912 | -4/Warlord | Found Prototype Processor 42912 | -4/Warlord | Identified Exp. Target Analyzer 43025 | -4/Warlord | Visited the Vortex Lab 43039 | -4/Warlord | Found Prototype Launcher 43040 | -4/Warlord | Warlord's base attacked by MAIN.C 43041 | -4/Warlord | Found Prototype Piercing Weapon 43044 | -4/Warlord | Identified Vortex Lance 43047 | -4/Warlord | Found Vortex Lance 43090 | -4/Warlord | Found Prototype Device 43138 | -4/Warlord | Met Warlord 43281 | -4/Warlord | Found Prototype Ballistic Cannon 43281 | -4/Warlord | Identified Hvy. Autocannon 43344 | -4/Warlord | Lost 3 allies 43378 | -4/Warlord | Build established: Scavenger-Gunner 43390 | -4/Warlord | Warlord forces counterattacked 43427 | -4/Warlord | Spotted Executioner 43435 | -4/Warlord | Destroyed Executioner 43448 | -4/Warlord | Spotted Executioner 43474 | -4/Warlord | Found Exp. Core Analyzer 43485 | -4/Warlord | P-70 Sage assimilated allied 87-Q6O(m) 43487 | -4/Warlord | Spotted Executioner 43496 | -4/Warlord | Destroyed Executioner 43572 | -4/Warlord | Lost 19 allies 43578 | -4/Warlord | Found Exp. Targeting Computer 43595 | -4/Warlord | Spotted Striker 43683 | -4/Warlord | Lost 9 allies 43715 | -4/Warlord | Warlord base infiltrated, sounded retreat 43838 | -4/Warlord | Spotted Striker 43846 | -4/Warlord | Spotted Striker 43856 | -4/Warlord | Found Prototype Launcher 43861 | -4/Warlord | Identified Exp. Neutron Missile Launcher 43882 | -4/Warlord | Lost 4 allies 43902 | -4/Warlord | Entered Proximity Caves 43994 | -3/Proximity Caves | Attracted the attention of an 0b10 checkpoint 44129 | -3/Proximity Caves | Build established: Scavenger-Tank 44292 | -3/Proximity Caves | Crushed by falling debris 44336 | -3/Proximity Caves | Spotted B-86 Titan 44453 | -3/Proximity Caves | Destroyed B-86 Titan 44582 | -3/Proximity Caves | Discovered exit to Research (range 47) 45182 | -3/Proximity Caves | Entered Research 45182 | -3/Research | Evolved 2 slots: Propulsion x1, Utility x1 45382 | -3/Research | Revision forces began assault on 0b10 45391 | -3/Research | Identified exit to Testing 45433 | -3/Research | Met up with Revision 17++ 45882 | -3/Research | Research terminal network offline 46224 | -3/Research | Fabricated Centrium Leg? 46235 | -3/Research | Found Prototype Device 46235 | -3/Research | Identified Adv. EM Shield 46332 | -3/Research | Identified Vortex Catalyst Activator 46403 | -3/Research | Discovered new exit (range 14) 46507 | -3/Research | Spotted Striker 46507 | -3/Research | Spotted Executioner 46510 | -3/Research | Entered Testing 46615 | -3/Testing | Discovered new exit (range 15) 46630 | -3/Testing | Spotted PX-5HHON4GVDO 46643 | -3/Testing | Build established: Scavenger-Mutant 46656 | -3/Testing | Found Prototype Energy Gun 46656 | -3/Testing | Identified Hyp. EM Gauss Rifle 46721 | -3/Testing | Found Prototype Protection 46721 | -3/Testing | Identified Centrium Heavy Armor Plating 46748 | -3/Testing | Found Centrium Heavy Armor Plating 46796 | -3/Testing | Found Prototype Hackware 46796 | -3/Testing | Identified Exp. Hacking Suite 47018 | -3/Testing | Found Prototype Energy Cannon 47018 | -3/Testing | Identified Potential Cannon 47130 | -3/Testing | Central database locked down 47245 | -3/Testing | Entered Research 47245 | -2/Research | Warlord forces began assault on 0b10 47245 | -2/Research | Evolved 2 slots: Propulsion x1, Utility x1 47270 | -2/Research | Distinguished unit "Magnificent Bastards" dispatched to help 47270 | -2/Research | Distinguished unit "Gunslingers" dispatched to help 47284 | -2/Research | Identified Wardrone Bay 47333 | -2/Research | Found Prototype Launcher 47333 | -2/Research | Identified Ragnarok Missile Launcher 47355 | -2/Research | Research machine network offline 47401 | -2/Research | Met up with Warlord 47401 | -2/Research | Spotted B-90 Cyclops 47428 | -2/Research | Discovered new exit (range 23) 47434 | -2/Research | Found Prototype Device 47434 | -2/Research | Identified Exp. Transmission Jammer 47477 | -2/Research | Spotted B-90 Cyclops 47829 | -2/Research | Borebot progress halted 47857 | -2/Research | Discovered new exit (range 4) 47858 | -2/Research | Identified exit to Access 47862 | -2/Research | Found Exp. Melee Analysis Suite 47863 | -2/Research | Borebot progress halted 47913 | -2/Research | Spotted Striker 47969 | -2/Research | Lost 9 allies 48073 | -2/Research | Discovered exit to Access (range 16) 48121 | -2/Research | Spotted Executioner 48187 | -2/Research | Found Prototype Device 48187 | -2/Research | Identified Adv. Kinecellerator 48311 | -2/Research | Borebot progress halted 48323 | -2/Research | Warlord invited to help at Command 48323 | -2/Research | Given Cave Seal Controls access code 48441 | -2/Research | Identified exit to Quarantine 48482 | -2/Research | Spotted Striker 48581 | -2/Research | Spotted Striker 48598 | -2/Research | Found Centrium Heavy Armor Plating 48600 | -2/Research | Found Centrium Heavy Armor Plating 48640 | -2/Research | Lost 4 allies 48696 | -2/Research | Spotted Striker 48765 | -2/Research | Entered Quarantine 48775 | -2/Quarantine | Found Alien Impact Weapon 48777 | -2/Quarantine | Identified Core Stripper 48794 | -2/Quarantine | Garrison activated, responded to threat 48855 | -2/Quarantine | Found Alien Artifact 48960 | -2/Quarantine | Identified Subatomic Replicator 49023 | -2/Quarantine | Cryocooling Duct disabled 49038 | -2/Quarantine | Ambient heat levels rising (+20) 49038 | -2/Quarantine | Non-combat units ordered to evacuate 49124 | -2/Quarantine | Discovered exit to Access (range 13) 49239 | -2/Quarantine | Found Alien Slashing Weapon 49239 | -2/Quarantine | Identified Sigix Broadsword 49335 | -2/Quarantine | Lost 3 parts (1p1u1w) 49431 | -2/Quarantine | Found Alien Artifact 49555 | -2/Quarantine | Spotted Fortress 49556 | -2/Quarantine | Destroyed Fortress 49564 | -2/Quarantine | Found Prototype Device 49564 | -2/Quarantine | Identified Thermal Barrier 49566 | -2/Quarantine | Found Prototype Device 49566 | -2/Quarantine | Identified Exp. Force Field 49649 | -2/Quarantine | Discovered new exit (range 5) 49649 | -2/Quarantine | Discovered new exit (range 6) 49650 | -2/Quarantine | Identified exit to Section 7 49651 | -2/Quarantine | Identified exit to Protoforge 49653 | -2/Quarantine | Entered Section 7 49654 | -2/Section 7 | Spotted S7 Guard 49659 | -2/Section 7 | Destroyed S7 Guard 49669 | -2/Section 7 | Found Prototype Protection 49669 | -2/Section 7 | Identified Hvy. Regenerative Plating 49834 | -2/Section 7 | Found Alien Artifact 49834 | -2/Section 7 | Identified Integrated Dissipator 49834 | -2/Section 7 | Installed Integrated Dissipator, increased core heat dissipation (+20) 49984 | -2/Section 7 | Spotted S7 Guard 49991 | -2/Section 7 | Spotted S7 Guard 50017 | -2/Section 7 | Spotted CY-PHR 50081 | -2/Section 7 | Found Exp. Focal Shield 50106 | -2/Section 7 | Discovered exit to Access (range 3) 50188 | -2/Section 7 | Spotted S7 Guard 50263 | -2/Section 7 | Spotted B-90 Cyclops 50678 | -2/Section 7 | Identified Core Reset Matrix 50742 | -2/Section 7 | Found Alien Artifact 50742 | -2/Section 7 | Identified Integrity Redistributor 50742 | -2/Section 7 | Used Integrity Redistributor, redistributed integrity from core (-213) 50760 | -2/Section 7 | Found Alien Artifact 50760 | -2/Section 7 | Identified Integrated Mediator 50760 | -2/Section 7 | Installed Integrated Mediator, increased core attachment efficiency 50814 | -2/Section 7 | Found Prototype Launcher 50814 | -2/Section 7 | Identified Enh. Gamma Bomb Array 50819 | -2/Section 7 | Found Enh. Gamma Bomb Array 50858 | -2/Section 7 | Found Alien Artifact 50878 | -2/Section 7 | Build established: Scavenger-Ninja 51048 | -2/Section 7 | Destroyed S7 Guard 51071 | -2/Section 7 | Found Alien Artifact 51145 | -2/Section 7 | Identified Core Membrane 51145 | -2/Section 7 | Identified Core Regenerator 51145 | -2/Section 7 | Installed Core Membrane, gained immunity to corruption 51153 | -2/Section 7 | First assault squad dispatched 51159 | -2/Section 7 | Found Exp. Focal Shield 51229 | -2/Section 7 | Build established: Scavenger-Mutant 51384 | -2/Section 7 | Found Hvy. Regenerative Plating 51416 | -2/Section 7 | Found Integrity Redistributor 51672 | -2/Section 7 | Used Core Regenerator, restored core integrity (+362) 51718 | -2/Section 7 | Build established: Scavenger-Gladiator 51924 | -2/Section 7 | Spotted Executioner 51925 | -2/Section 7 | Spotted Executioner 51950 | -2/Section 7 | Spotted B-99 Colossus 51992 | -2/Section 7 | Found Alien Artifact 51992 | -2/Section 7 | Identified LRC Matter Compressor 51992 | -2/Section 7 | Installed LRC Matter Compressor, increased matter storage capacity (+125) 51994 | -2/Section 7 | Found Alien Artifact 51994 | -2/Section 7 | Identified LRC Storage 51994 | -2/Section 7 | Installed LRC Storage, increased inventory capacity (+2) 52068 | -2/Section 7 | Found Alien Artifact 52070 | -2/Section 7 | Found Alien Artifact 52097 | -2/Section 7 | Spotted Striker 52098 | -2/Section 7 | Spotted Striker 52157 | -2/Section 7 | Spotted Striker 52157 | -2/Section 7 | Spotted Striker 52170 | -2/Section 7 | Found Alien Energy Gun 52171 | -2/Section 7 | Identified Sigix Sheargun 52179 | -2/Section 7 | Used Integrity Redistributor, redistributed integrity from core (-212) 52284 | -2/Section 7 | Found Alien Artifact 52301 | -2/Section 7 | Scanned by Researcher 52302 | -2/Section 7 | Intercept squad dispatched 52304 | -2/Section 7 | Spotted Tracker 52305 | -2/Section 7 | Spotted Tracker 52308 | -2/Section 7 | Identified Transdimensional Reconstructor 52308 | -2/Section 7 | Warped through subspace 52309 | -2/Section 7 | Core integrity fell below 50% 52375 | -2/Section 7 | Spotted Combat Programmer 52428 | -2/Section 7 | Destroyed Tracker 52431 | -2/Section 7 | Destroyed Tracker 52455 | -2/Section 7 | Intercept squad dispatched 52455 | -2/Section 7 | Spotted Combat Programmer 52455 | -2/Section 7 | Spotted Tracker 52455 | -2/Section 7 | Spotted Tracker 52455 | -2/Section 7 | Spotted Tracker 52455 | -2/Section 7 | Spotted Combat Programmer 52455 | -2/Section 7 | Spotted Combat Programmer 52464 | -2/Section 7 | Destroyed 12 combat bots 52469 | -2/Section 7 | Entered Access 52469 | -1/Access | Evolved 2 slots: Propulsion x1, Utility x1 52498 | -1/Access | Lost 10 parts (2p3n4u1w) 52607 | -1/Access | Found Prototype Device 52607 | -1/Access | Identified Exp. Shield Generator 52683 | -1/Access | Discovered new exit (range 5) 52719 | -1/Access | First assault squad dispatched 52739 | -1/Access | Found Unknown Device 52739 | -1/Access | Identified Quantum Capacitor 52754 | -1/Access | Lost 17 parts (2p8n6u1w) 52923 | -1/Access | Garrison activated, responded to threat 52927 | -1/Access | Identified Navigation Efficiency Matrix 52927 | -1/Access | Installed Navigation Efficiency Matrix, process failed with unexpected side effects 52997 | -1/Access | Intercept squad dispatched 53038 | -1/Access | Build established: Scavenger-Mutant 53138 | -1/Access | Identified Hpw. Transdimensional Reconstructor 53138 | -1/Access | Warped through subspace 53357 | -1/Access | Found Prototype Processor 53357 | -1/Access | Identified Exp. Armor Integrity Analyzer 53617 | -1/Access | Lost 3 parts (1n2u) 53650 | -1/Access | Spotted B-99 Colossus 53650 | -1/Access | Spotted B-99 Colossus 53656 | -1/Access | Destroyed B-99 Colossus 53684 | -1/Access | Core integrity fell below 50% 53694 | -1/Access | Used Subatomic Replicator to replicate Wardrone Bay 53722 | -1/Access | Allies destroyed B-99 Colossus 53728 | -1/Access | Lost 13 parts (2p5n4u2w) 53961 | -1/Access | Intercept squad dispatched 53978 | -1/Access | Spotted Tracker 53979 | -1/Access | Spotted Tracker 53979 | -1/Access | Spotted Tracker 53989 | -1/Access | Destroyed Tracker 54001 | -1/Access | High security lockdown imminent 54025 | -1/Access | Destroyed Tracker 54040 | -1/Access | Found Prototype Energy Gun 54052 | -1/Access | Found Exp. Phase Shifter 54081 | -1/Access | High security lockdown engaged 54199 | -1/Access | Spotted Combat Programmer 54254 | -1/Access | Spotted Combat Programmer 54254 | -1/Access | Spotted Combat Programmer 54262 | -1/Access | Lost 7 parts (2p4n1w) 54272 | -1/Access | Spotted Striker 54330 | -1/Access | Lost 3 parts (2n1u) 54374 | -1/Access | Spotted Striker 54374 | -1/Access | Spotted Executioner 54378 | -1/Access | Spotted Investigator 54381 | -1/Access | Destroyed Investigator 54389 | -1/Access | Core integrity fell below 20% 54393 | -1/Access | Destroyed Striker 54399 | -1/Access | Destroyed by Y-72 Warden with Quantum Rifle Last Messages --------------- 54388_ Slug penetrates Wall. 54391_ Core Membrane filtered system corruption (1). 54391_ Linked Autogun destroyed. 54393_ Striker destroyed. 54393_ Destroyed Power Sword. 54393_ G-73 Enforcer destroyed. 54393_ L-61 Swordsman destroyed. 54393_ Destroyed Lgt. Antimatter Reactor. 54393_ G-73 Enforcer destroyed. 54393_ Penetrated by Slug. 54395_ L-61 Swordsman destroyed. 54396_ Exp. Neutron Missile Launcher destroyed. 54396_ Penetrated by Slug. 54396_ Slug penetrates Earth. 54397_ The unstable cave ceiling collapses. 54397_ Stasis bubble strength at 194. 54397_ Q792-e: IFF CHECK FAIL. 54398_ The unstable cave ceiling collapses. 54398_ Stasis bubble strength at 188. 54399_ Stasis bubble strength at 182. Map ----- +----------------------------------------------------+ | ??????????????# ### ###?# + #????????? | | ??????????????# # =#?# # #????????? = | | ??????????????# # ### # #????????? | | ??????????????# / + #?????????# | | ??????????????# # ### # ########### | | ??????????????# ]# ! #?# ####+## | | ??????????????########### ##?# | | ################# #??# #??####### | | #??# #????????# ##### | | ! #??# #????????# #???# | | ################# #??# #??#######+## #???# | | ??????????????####+###### #??# # #???# | | ??????????????# ## #??# # ##+##### | | ??????????????# ## #??# # # ! | | ??????????????# ## #??# # # | | ??????????????# # #??# / + | | ??????????????# # #### " # # | | ??????????????# ## u + """ # # | | ??????????????# ##Y#### """ # #######+ | | ???#########??# ## ## # " # ####### | | ??? ???# ##w ########## | | ??? ???###### #??????# | | ???" ??????# # #??????# | | ???"" ??????##### %# ##?????# #######+ | | ????"" ?????????# ! l #?????# #????? | | ????" ?????????# @ #?????# #????? | | ????? ??????????# E #?????# #???? " | | ????? ??????????# Yp% #?????# #???? "" | | ######+############ g =g #?????# #??? """ | | g #?????# #??? " | | ## ##?????# #?? | | ######/########/#### #??????# #?? | | ## # # ##??????# #?####?? | | ## #] # # ###???????# #??????? | | ## # # #######?????????# #??????? | | ## " # =# #??????????????? ???????? | | ## """ # !!! # #??????????????? ???????? | | ## " """ # !!! #/#??????????????? ???????? | | ##"%" " # !! #%??????????????? ???????? | | ## " # #"??????????????? """???????? | | ## ! ##"########%??????????????? """"???????? | | ###/########%#???????"???????????????????????????? | | !! ???????#!#??????? ???????????????????????????? | | ! ???????#=#???????????????????????????????????? | | ????????#[#???????+#??????????????????????????? | | ????????# #?????## #######????????????????????? | | #+##+#?????#%#?????# ?????????????????????? | | #?????#=#?????# ??????????????????????? | | #### #?????#=#?????# ????????????????????????? | | #### ###?###[###???# #?????????????????????????? | +----------------------------------------------------+ Best States ------------- Heat Dissipation 148 Coolant Potential 100 Energy Generation 55 Energy Capacity 2200 Matter Stores 425 Matter Capacity 425 Sight Range 23 Robot Scan Range 20 Terrain Scan Range 24 Terrain Scan Density 2010 Jamming Range 22 Cloak Strength 4 Power Amplification 30 Additional Mass Support 20 Base Temperature (-) 200 EM Shielding 4 Corruption Block 20 Armor Coverage 1200 Resistance: KI 30 Resistance: TH 50 Resistance: EX 15 Resistance: EM 75 Resistance: I 15 Resistance: S 15 Resistance: P 15 Weapon Shielding 100 Weapon Cycling 25 Melee Speed Boost 20 Phase Shifting 8 Evasion (%) 82 Targeting Accuracy 20 Melee Accuracy 8 Core Analysis 8 Armor Integrity Analysis 50 Recoil Reduction 6 Particle Charging 25 Offensive Hacking 20 Defensive Hacking 10 Authchip Count 1 Trap Extractor Capacity 10 Item Schematics ----------------- Hcp. Storage Unit | -10/Materials | Hacked Trap Extractor | -9/Materials | Scanalyzed Hrd. Light Armor Plating | -9/Materials | Scanalyzed Cmb. Antigrav System | -8/Materials | Scanalyzed Exp. Sensor Array | -8/Materials | Scanalyzed Exp. Core Analyzer | -8/Materials | Scanalyzed Adv. Weapon Cycler | -8/Materials | Scanalyzed Microactuators | -7/Zion | Archive Imp. Medium Treads | -7/Zion | Archive Adv. Terrain Scanner | -7/Zion | Archive EM Disruption Field | -7/Zion | Archive Hvy. Flak Cannon | -7/Zion | Archive Matter Filter | -7/Zion | Archive KE Penetrator | -7/Zion | Archive Imp. Corruption Screen | -7/Zion | Archive Greatsword | -7/Zion | Archive Adv. Heat Sink | -7/Zion | Archive Recalibrator | -7/Zion | Archive Imp. EM Pulse Cannon | -7/Zion | Archive Matter Compressor | -7/Zion | Archive Great Axe | -7/Zion | Archive HERF Cannon | -7/Zion | Archive Exp. ECM Suite | -3/Testing | Archive Imp. Energy Well | -3/Testing | Archive Diametric Drive | -2/Section 7 | Archive Neutron Missile Launcher | -2/Section 7 | Archive Exp. Biometal Heavy Treads | -2/Section 7 | Archive Robot Schematics ------------------ H-55 Commando | -7/Zion | Archive O-24 Administrator | -7/Zion | Archive T-07 Excavator | -7/Zion | Archive B-60 Warrior | -3/Testing | Archive R-06 Scavenger | -3/Testing | Archive H-88 Terminator | -2/Section 7 | Archive Fabricated ------------ Centrium Leg | x1 | -3/Research | Preloaded Repaired ---------- Lgt. Treads | 51% | -10/Materials Trap Extractor | 32% | -9/Materials Exp. Sensor Array | 62% | -8/Materials | Broken Arm. Treads | 12% | -8/Materials Arm. Wheel | 43% | -8/Materials Enh. Autogun | 65% | -8/Materials Enh. Autogun | 36% | -8/Materials Enh. Autogun | 70% | -8/Materials System Purifier | 77% | -8/Materials | Broken Hrd. Heavy Armor Plating | 38% | -8/Materials Hvy. Assault Cannon | 62% | -8/Materials Rnf. Deuterium Engine | 71% | -8/Materials Enh. Autogun | 63% | -8/Materials Arm. Treads | 59% | -8/Materials Hvy. Missile Launcher | 71% | -8/Materials Arm. Huge Wheel | 73% | -8/Materials Cmb. Antigrav System | 87% | -8/Materials | Broken Adv. Weapon Cycler | 90% | -8/Materials Hrd. Medium Armor Plating | 66% | -8/Storage Arm. Treads | 73% | -8/Storage Med. Reflective Plating | 19% | -8/Storage Studied --------- Hvy. Assault Rifle | -9/Materials | Hacked Lgt. EM Pulse Cannon | -9/Materials | Hacked Axe | -8/Materials | Hacked Missile Launcher | -8/Materials | Hacked Wheel | -8/Materials | Hacked Hvy. Assault Cannon | -8/Materials | Hacked KE Penetrator | -4/Factory | Hacked Cmb. Antigrav System | -3/Testing | Hacked Com. HERF Cannon | -3/Testing | Hacked Mic. Antimatter Reactor | -3/Testing | Hacked Cmb. Linear Gravjet | -3/Testing | Hacked Antigrav Array | -2/Research | Hacked Lgt. Quantum Reactor | -2/Research | Hacked Alien Tech Used ----------------- Dimensional Node Initializer Core Stripper Sigix Broadsword Integrated Dissipator Integrity Redistributor Integrated Mediator Core Membrane Core Regenerator LRC Matter Compressor LRC Storage Sigix Sheargun Transdimensional Reconstructor Navigation Efficiency Matrix High-powered Transdimensional Reconstructor Subatomic Replicator Achievements -------------- None Challenges ------------ None Game ------ Seed ShadingDirectedArchive Manual? 0 Play Time 12:45:53 Cumulative 1708.4 hours Start 2026.07.13 @ 23:50:51 End 2026.07.20 @ 21:38:48 Sessions 14 Manual Loads 0 Difficulty Rogue Special Mode None Game No. 519 Rogue 511 Adventurer 4 Explorer 4 Win Type - Total 67 Types 31/9/4/4/2/4/6/2/3/2 Lore% 97 Gallery% 96 Achievement% 91 Wizard Run 0 Options --------- Layout 0 ASCII 0 Keyboard 0 Movement Numpad Keybinds 0 Fullscreen 2 Font 18/SmallcapsGlow Map View 76x50 Zoom Use 3% Tactical HUD 1 Map Filters NONE Filters NONE Steam 1 RUN: f366b8e1-af01-45bb-9bbc-51e3bb78f424